Workbook

Sheet LoadCars
B1: Scheme ID | C1: MFP-794925 | G1: Scheme PIN | H1: 4597260 | I1: Today | J1: اللون | L1: تم مراجعتهم | M1: ملاحظات النظر في تعبئة اللون على اليسار ووضع القيمة السوقية
B2: Policy No | C2: MFP/794925 | G2: Scheme s/n | H2: 1108402 | I2: =TODAY() -> 2023-01-03 | J2: اللون | K2: يضاف جديد | L2: تم اضافتهم
B3: Full Name | C3: Khaled Saleh Alhussen | J3: اللون | K3: مستبعد | L3: لعدم وضعهم في البولية
B4: Period | C4: From: | D4: 2017-06-14 | G4: To: | H4: 2018-06-14 | I4: =H1*H1-H1 -> 21134794910340 | J4: اللون | K4: غير معلوم | L4: لا يوجد بيانات
J5: اللون | K5: الرياض | L5: سيارات الرياض | AM5: Residence | AV5: Wasel/Postal Address
A6: Serial | B6: Brand Name | C6: Color | D6: Year Made | E6: Body Type | F6: Numeric Plate# | G6: Arabic Plate# | H6: Plate Type | I6: Chassis # | J6: Sequence # | K6: Seats | L6: Market Vaue | M6: User Name | N6: Mobile Number | O6: User Type | P6: User ID | Q6: Nationality | R6: Effective dd/mm/yyyy | S6: Hijri Istimara Expiry | T6: Date Of Birth dd/mm/yyyy | U6: ODRepair | V6: PA Cover | W6: Elect EQ | X6: END | Y6: Medgulf PIN | Z6: Insured Cert# | AB6: Categories | AD6: Sub-Groups | AF6: I/P Classes | AH6: Transaction | AJ6: Countries | AM6: Building No. | AN6: Unit No. | AO6: Zip Code | AP6: Additional No | AQ6: City | AR6: District | AS6: Street | AT6: Region | AU6: Mailing Address | AV6: Building/No P.O Box | AW6: Zip /Postal Code | AX6: Additional No | AY6: City | AZ6: Region
A7: 1 | B7: Mercedes-Benz_TRUCK (63-4614) | C7: white | D7: 2008 | E7: G-Truck | F7: 3739 | G7: ب ب ط | H7: Private transport | I7: WDB9340321L356088 | J7: 936813510 | K7: 2 | L7: 80000 | M7: Mohamed Theeb Ashaq Shaflout CO | N7: 555056259 | O7: Male | P7: Owner | Q7: Saudi | AQ7: مدينة | AR7: منطقة | AS7: شارع | AU7: عنوان المراسلات | AV7: المبنى / لا يوجد صندوق بريد | AW7: الرمز البريدي / الرمز البريدي | AX7: رقم إضافي | AY7: مدينة
A8: 2 | B8: Mercedes-Benz_TRUCK (63-4614) | C8: green | D8: 2008 | E8: G-Truck | F8: 7969 | G8: ا هـ س | H8: Private transport | I8: WDB9340321L298839 | J8: 324190310 | K8: 2 | L8: 80000 | M8: Mohamed Theeb Ashaq Shaflout CO | N8: 555056259 | O8: Male | P8: Owner | Q8: Saudi
A9: 3 | B9: Mercedes-Benz_TRUCK (63-4614) | C9: blue | D9: 2009 | E9: G-Truck | F9: 8362 | G9: أ ب و | H9: public transport | I9: WDB9340321L384203 | J9: 884910310 | K9: 2 | L9: 85000 | M9: Mohamed Theeb Ashaq Shaflout CO | N9: 555056259 | O9: Male | P9: Owner | Q9: Saudi
A10: 4 | B10: Mercedes-Benz_TRUCK (63-4614) | C10: Blue / red | D10: 2009 | E10: G-Truck | F10: 7607 | G10: أ هـ س | H10: Private transport | I10: WDB9340321L395066 | J10: 257069210 | K10: 2 | L10: 85000 | M10: Mohamed Theeb Ashaq Shaflout CO | N10: 555056259 | O10: Male | P10: Owner | Q10: Saudi
A11: 5 | B11: Mercedes-Benz_TRUCK (63-4614) | C11: blue | D11: 2006 | E11: G-Truck | F11: 8396 | G11: أ ب و | H11: Public transport | I11: WDB9340321L123410 | J11: 254584210 | K11: 2 | L11: 71000 | M11: Mohamed Theeb Ashaq Shaflout CO | N11: 555056259 | O11: Male | P11: Owner | Q11: Saudi
A12: 6 | B12: Mercedes-Benz_TRUCK (63-4614) | C12: blue | D12: 2009 | E12: G-Truck | F12: 4843 | G12: أ هـ د | H12: Private transport | I12: WDB9340321L392239 | J12: 770438210 | K12: 2 | L12: 85000 | M12: Mohamed Theeb Ashaq Shaflout CO | N12: 555056259 | O12: Male | P12: Owner | Q12: Saudi
A13: 7 | B13: Mercedes-Benz_TRUCK (63-4614) | C13: white | D13: 2006 | E13: G-Truck | F13: 2135 | G13: أ م ق | H13: Private transport | I13: WDB9340321L066512 | J13: 55022210 | K13: 2 | L13: 71000 | M13: Mohamed Theeb Ashaq Shaflout CO | N13: 555056259 | O13: Male | P13: Owner | Q13: Saudi
A14: 8 | B14: Mercedes-Benz_TRUCK (63-4614) | C14: white | D14: 1989 | E14: G-Truck | F14: 1955 | G14: أ أ هـ | H14: public transport | I14: WDB64913615420353 | J14: 630146400 | K14: 2 | L14: 69000 | M14: Mohamed Theeb Ashaq Shaflout CO | N14: 555056259 | O14: Male | P14: Owner | Q14: Saudi
A15: 9 | B15: Mercedes-Benz_TRUCK (63-4614) | C15: orange | D15: 1994 | E15: G-Truck | F15: 1977 | G15: أ أ هـ | H15: public transport | I15: WDB6581471K038917 | J15: 255330600 | K15: 2 | L15: 71000 | M15: Mohamed Theeb Ashaq Shaflout CO | N15: 555056259 | O15: Male | P15: Owner | Q15: Saudi
A16: 10 | B16: Mercedes-Benz_TRUCK (63-4614) | C16: red | D16: 1987 | E16: G-Truck | F16: 1971 | G16: أ أ هـ | H16: public transport | I16: WDB64512315299019 | J16: 617376200 | K16: 2 | L16: 72630 | M16: Mohamed Theeb Ashaq Shaflout CO | N16: 555056259 | O16: Male | P16: Owner | Q16: Saudi
A17: 11 | B17: Mercedes-Benz_TRUCK (63-4614) | C17: Dark gray | D17: 1996 | E17: G-Truck | F17: 2136 | G17: أ د س | H17: Private transport | I17: NMB37132055009892 | J17: 135591900 | K17: 2 | L17: 40000 | M17: Mohamed Theeb Ashaq Shaflout CO | N17: 555056259 | O17: Male | P17: Owner | Q17: Saudi
A18: 12 | B18: Mercedes-Benz_TRUCK (63-4614) | C18: white | D18: 1996 | E18: G-Truck | F18: 1954 | G18: أ أ هـ | H18: public transport | I18: WDB6555331K155025 | J18: 94357500 | K18: 2 | L18: 71000 | M18: Mohamed Theeb Ashaq Shaflout CO | N18: 555056259 | O18: Male | P18: Owner | Q18: Saudi
A19: 13 | B19: Mercedes-Benz_TRUCK (63-4614) | C19: white | D19: 2008 | E19: G-Truck | F19: 2386 | G19: أ م ب | H19: Private transport | I19: WDB9340331L283079 | J19: 751410210 | K19: 2 | L19: 95000 | M19: Mohamed Theeb Ashaq Shaflout CO | N19: 555056259 | O19: Male | P19: Owner | Q19: Saudi
A20: 14 | B20: Mercedes-Benz_TRUCK (63-4614) | C20: white | D20: 2000 | E20: G-Truck | F20: 5598 | G20: أ أ هـ | H20: public transport | I20: WDB6561325K456801 | J20: 835888400 | K20: 2 | L20: 62000 | M20: Mohamed Theeb Ashaq Shaflout CO | N20: 555056259 | O20: Male | P20: Owner | Q20: Saudi
A21: 15 | B21: Mercedes-Benz_TRUCK (63-4614) | C21: white | D21: 1991 | E21: G-Truck | F21: 3506 | G21: أ س ى | H21: Private transport | I21: WDB65913615598263 | J21: 795726700 | K21: 2 | L21: 69000 | M21: Mohamed Theeb Ashaq Shaflout CO | N21: 555056259 | O21: Male | P21: Owner | Q21: Saudi
A22: 16 | B22: Mercedes-Benz_TRUCK (63-4614) | C22: white | D22: 1997 | E22: G-Truck | F22: 7366 | G22: أ ل طـ | H22: Private transport | I22: WDB6561325K246328 | J22: 946050400 | K22: 2 | L22: 70000 | M22: Mohamed Theeb Ashaq Shaflout CO | N22: 555056259 | O22: Male | P22: Owner | Q22: Saudi
A23: 17 | B23: Mercedes-Benz_TRUCK (63-4614) | C23: yellow | D23: 1996 | E23: G-Truck | F23: 5206 | G23: أ ب ح | H23: Private transport | I23: WDB6555831K203474 | J23: 521301500 | K23: 2 | L23: 82000 | M23: Mohamed Theeb Ashaq Shaflout CO | N23: 555056259 | O23: Male | P23: Owner | Q23: Saudi
A24: 18 | B24: Mercedes-Benz_TRUCK (63-4614) | C24: white | D24: 1984 | E24: G-Truck | F24: 8339 | G24: أ أ هـ | H24: public transport | I24: 62 102 515 073 514 | J24: 123732200 | K24: 2 | L24: 74855 | M24: Mohamed Theeb Ashaq Shaflout CO | N24: 555056259 | O24: Male | P24: Owner | Q24: Saudi
A25: 19 | B25: Mercedes-Benz_TRUCK (63-4614) | C25: white | D25: 1995 | E25: G-Truck | F25: 4906 | G25: أ د د | H25: public transport | I25: WDB6555831K141396 | J25: 42081500 | K25: 2 | L25: 82000 | M25: Mohamed Theeb Ashaq Shaflout CO | N25: 555056259 | O25: Male | P25: Owner | Q25: Saudi
A26: 20 | B26: Mercedes-Benz_TRUCK (63-4614) | C26: white | D26: 1994 | E26: G-Truck | F26: 9725 | G26: أ ب ق | H26: public transport | I26: WDB6555911K040473 | J26: 102939700 | K26: 2 | L26: 53200 | M26: Mohamed Theeb Ashaq Shaflout CO | N26: 555056259 | O26: Male | P26: Owner | Q26: Saudi
A27: 21 | B27: Mercedes-Benz_TRUCK (63-4614) | C27: white | D27: 2009 | E27: G-Truck | F27: 9569 | G27: أ ى ن | H27: Private transport | I27: WDB9340321L362944 | J27: 985671410 | K27: 2 | L27: 90000 | M27: Mohamed Theeb Ashaq Shaflout CO | N27: 555056259 | O27: Male | P27: Owner | Q27: Saudi
A28: 22 | B28: Mercedes-Benz_TRUCK (63-4614) | C28: white | D28: 2013 | E28: G-Truck | F28: 9561 | G28: ب ر ا | H28: Private transport | I28: WDB9340321L706653 | J28: 147990710 | K28: 2 | L28: 95000 | M28: Mohamed Theeb Ashaq Shaflout CO | N28: 555056259 | O28: Male | P28: Owner | Q28: Saudi
A29: 23 | B29: Mercedes-Benz_TRUCK (63-4614) | C29: white | D29: 1989 | E29: G-Truck | F29: 3509 | G29: ا س ي | H29: Private transport | I29: WDB62413415415598 | J29: 313702600 | K29: 2 | L29: 80000 | M29: Mohamed Theeb Ashaq Shaflout CO | N29: 555056259 | O29: Male | P29: Owner | Q29: Saudi
A30: 24 | B30: Mercedes-Benz_TRUCK (63-4614) | C30: white | D30: 1987 | E30: G-Truck | F30: 1956 | G30: ا ا هـ | H30: public transport | I30: WHB61904815287432 | J30: 487755200 | K30: 2 | L30: 42000 | M30: Mohamed Theeb Ashaq Shaflout CO | N30: 555056259 | O30: Male | P30: Owner | Q30: Saudi
A31: 25 | B31: Mercedes-Benz_TRUCK (63-4614) | C31: white | D31: 1995 | E31: G-Truck | F31: 8307 | G31: ا ا هـ | H31: public transport | I31: WDB64913655490155 | J31: 452639200 | K31: 2 | L31: 82000 | M31: Mohamed Theeb Ashaq Shaflout CO | N31: 555056259 | O31: Male | P31: Owner | Q31: Saudi
A32: 26 | B32: Mercedes-Benz_TRUCK (63-4614) | C32: Gray | D32: 1982 | E32: G-Truck | F32: 6932 | G32: ا ا ن | H32: Private transport | I32: 54834888 | J32: 395075100 | K32: 2 | L32: 70000 | M32: Mohamed Theeb Ashaq Shaflout CO | N32: 555056259 | O32: Male | P32: Owner | Q32: Saudi
A33: 27 | B33: Mercedes-Benz_TRUCK (63-4614) | C33: orange | D33: 1991 | E33: G-Truck | F33: 6642 | G33: ا د ك | H33: Private transport | I33: WDB62514815732151 | J33: 386138800 | K33: 2 | L33: 82000 | M33: Mohamed Theeb Ashaq Shaflout CO | N33: 555056259 | O33: Male | P33: Owner | Q33: Saudi
A34: 28 | B34: Mercedes-Benz_TRUCK (63-4614) | C34: silver | D34: 2007 | E34: G-Truck | F34: 8856 | G34: ا ق ى | H34: Private transport | I34: WDB9333041L154162 | J34: 232307010 | K34: 2 | L34: 84000 | M34: Mohamed Theeb Ashaq Shaflout CO | N34: 555056259 | O34: Male | P34: Owner | Q34: Saudi
A35: 29 | B35: Mercedes-Benz_TRUCK (63-4614) | C35: white | D35: 2007 | E35: G-Truck | F35: 7906 | G35: ا ن د | H35: Private transport | I35: WDB9333141L178133 | J35: 724942210 | K35: 2 | L35: 84000 | M35: Mohamed Theeb Ashaq Shaflout CO | N35: 555056259 | O35: Male | P35: Owner | Q35: Saudi
A36: 30 | B36: Mercedes-Benz_TRUCK (63-4614) | C36: Gray | D36: 1991 | E36: G-Truck | F36: 3692 | G36: ا ا ك | H36: public transport | I36: WDB65913715566499 | J36: 621565800 | K36: 2 | L36: 80000 | M36: Mohamed Theeb Ashaq Shaflout CO | N36: 555056259 | O36: Male | P36: Owner | Q36: Saudi
A37: 31 | B37: Mercedes-Benz_TRUCK (63-4614) | C37: white | D37: 2013 | E37: G-Truck | F37: 9563 | G37: ب ر أ | H37: Private transport | I37: WDB9340321L706957 | J37: 657990710 | K37: 2 | L37: 90000 | M37: Mohamed Theeb Ashaq Shaflout CO | N37: 555056259 | O37: Male | P37: Owner | Q37: Saudi
A38: 32 | B38: Mercedes-Benz_TRUCK (63-4614) | C38: white | D38: 2014 | E38: G-Truck | F38: 9562 | G38: ب ر أ | H38: Private transport | I38: WDB9340321L801198 | J38: 947990710 | K38: 2 | L38: 90000 | M38: Mohamed Theeb Ashaq Shaflout CO | N38: 555056259 | O38: Male | P38: Owner | Q38: Saudi
A39: 33 | B39: Mercedes-Benz_TRUCK (63-4614) | C39: white | D39: 2005 | E39: G-Truck | F39: 8525 | G39: ا ق ى | H39: Private transport | I39: WDB9333041K989822 | J39: 658186010 | K39: 2 | L39: 83000 | M39: Mohamed Theeb Ashaq Shaflout CO | N39: 555056259 | O39: Male | P39: Owner | Q39: Saudi
A40: 34 | B40: Mercedes-Benz_TRUCK (63-4614) | C40: white | D40: 2008 | E40: G-Truck | F40: 7911 | G40: أ ن د | H40: Private transport | I40: WDB9333041L275994 | J40: 384942210 | K40: 2 | L40: 83000 | M40: Mohamed Theeb Ashaq Shaflout CO | N40: 555056259 | O40: Male | P40: Owner | Q40: Saudi
A41: 35 | B41: Mercedes-Benz_TRUCK (63-4614) | C41: blue | D41: 1990 | E41: G-Truck | F41: 5572 | G41: ا ا هـ | H41: public transport | I41: 658 139 155 642 67 | J41: 223539400 | K41: 2 | L41: 80000 | M41: Mohamed Theeb Ashaq Shaflout CO | N41: 555056259 | O41: Male | P41: Owner | Q41: Saudi
A42: 36 | B42: Mercedes-Benz_TRUCK (63-4614) | C42: red | D42: 1998 | E42: G-Truck | F42: 6877 | G42: ا د ك | H42: Private transport | I42: WDB6251361K279194 | J42: 252238800 | K42: 2 | L42: 81957 | M42: Mohamed Theeb Ashaq Shaflout CO | N42: 555056259 | O42: Male | P42: Owner | Q42: Saudi
A43: 37 | B43: Mercedes-Benz_TRUCK (63-4614) | C43: orange | D43: 1991 | E43: G-Truck | F43: 5571 | G43: ا ا هـ | H43: public transport | I43: 65 903 815 566 360 | J43: 32539400 | K43: 2 | L43: 80000 | M43: Mohamed Theeb Ashaq Shaflout CO | N43: 555056259 | O43: Male | P43: Owner | Q43: Saudi
A44: 38 | B44: Mercedes-Benz_TRUCK (63-4614) | C44: Gray | D44: 1983 | E44: G-Truck | F44: 5540 | G44: ا ا هـ | H44: public transport | I44: 34 300 354 921 891 | J44: 531806100 | K44: 2 | L44: 70000 | M44: Mohamed Theeb Ashaq Shaflout CO | N44: 555056259 | O44: Male | P44: Owner | Q44: Saudi
A45: 39 | B45: Mercedes-Benz_TRUCK (63-4614) | C45: Gray | D45: 1982 | E45: G-Truck | F45: 1943 | G45: ا ا هـ | H45: public transport | I45: 34 300 114 885 813 | J45: 854295100 | K45: 2 | L45: 70000 | M45: Mohamed Theeb Ashaq Shaflout CO | N45: 555056259 | O45: Male | P45: Owner | Q45: Saudi
A46: 40 | B46: Mercedes-Benz_TRUCK (63-4614) | C46: Gray | D46: 1986 | E46: G-Truck | F46: 7530 | G46: ا ل ن | H46: Private transport | I46: WDB34301455202778 | J46: 201158200 | K46: 2 | L46: 70000 | M46: Mohamed Theeb Ashaq Shaflout CO | N46: 555056259 | O46: Male | P46: Owner | Q46: Saudi
A47: 41 | B47: Mercedes-Benz_TRUCK (63-4614) | C47: white | D47: 2006 | E47: G-Truck | F47: 2954 | G47: ا ل و | H47: Private transport | I47: WDB9301431L132745 | J47: 959757110 | K47: 2 | L47: 200000 | M47: Mohamed Theeb Ashaq Shaflout CO | N47: 555056259 | O47: Male | P47: Owner | Q47: Saudi
A48: 42 | B48: Isuzu_Pickup (97-3833) | C48: white | D48: 2012 | E48: F-Pickup | F48: 3033 | G48: ا م ك | H48: Private transport | I48: MPAEL33T7CT118691 | J48: 749129110 | K48: 5 | L48: 16500 | M48: Mohamed Theeb Ashaq Shaflout CO | N48: 555056259 | O48: Male | P48: Owner | Q48: Saudi
A49: 43 | B49: JAC_PICKUP (187-4942) | C49: white | D49: 2014 | E49: F-Pickup | F49: 9451 | G49: ا و ن | H49: Private transport | I49: LJ13PDBC6E6015853 | J49: 531778310 | K49: 5 | L49: 38053 | M49: Mohamed Theeb Ashaq Shaflout CO | N49: 555056259 | O49: Male | P49: Owner | Q49: Saudi
A50: 44 | B50: Toyota_Pickup (25-3720) | C50: white | D50: 2014 | E50: F-Pickup | F50: 7371 | G50: ا و ن | H50: Private transport | I50: MR0FX22G2E1424083 | J50: 40879310 | K50: 6 | L50: 37853 | M50: Mohamed Theeb Ashaq Shaflout CO | N50: 555056259 | O50: Male | P50: Owner | Q50: Saudi
A51: 45 | B51: Toyota_Pickup (25-3720) | C51: white | D51: 2012 | E51: F-Pickup | F51: 4462 | G51: ا هـ هـ | H51: Private transport | I51: MR0FX22G7C1071367 | J51: 59153310 | K51: 6 | L51: 20902 | M51: Mohamed Theeb Ashaq Shaflout CO | N51: 555056259 | O51: Male | P51: Owner | Q51: Saudi
A52: 46 | B52: Isuzu_Pickup (97-3833) | C52: white | D52: 2008 | E52: F-Pickup | F52: 4840 | G52: ا د ق | H52: Private transport | I52: MPAEL39C18H523446 | J52: 261421900 | K52: 3 | L52: 15926 | M52: Mohamed Theeb Ashaq Shaflout CO | N52: 555056259 | O52: Male | P52: Owner | Q52: Saudi | AJ52: =GBHdr!J62 -> 0
A53: 47 | B53: Isuzu_MU-X | C53: silver | D53: 2020 | E53: MU-Mix | F53: 1755 | G53: د م ر | H53: Special | I53: MPAER88T9LT005412 | J53: 191219710 | K53: 7 | L53: 82500 | M53: Mohamed Theeb Ashaq Shaflout CO | N53: 555056259 | O53: Male | P53: Owner | Q53: Saudi | AJ53: =GBHdr!J63 -> 0
A54: 48 | B54: Toyota_Fortuner (25-2892) | C54: white | D54: 2012 | E54: A-Sedan | F54: 2486 | G54: ح د ك | H54: Special | I54: MHFZX69G6C7039519 | J54: 480069210 | K54: 8 | L54: 31804 | M54: Mohamed Theeb Ashaq Shaflout CO | N54: 555056259 | O54: Male | P54: Owner | Q54: Saudi | AJ54: =GBHdr!J64 -> 0
A55: 49 | B55: Toyota_Fortuner (25-2892) | C55: white | D55: 2020 | E55: A-Sedan | F55: 8831 | G55: د ق د | H55: Special | I55: MHFDB8FS8L0026230 | J55: 283726710 | K55: 8 | L55: 114,989 | M55: Mohamed Theeb Ashaq Shaflout CO | N55: 555056259 | O55: Male | P55: Owner | Q55: Saudi | AJ55: =GBHdr!J65 -> 0
A56: 50 | B56: Toyota_Fortuner (25-2892) | C56: white | D56: 2020 | E56: A-Sedan | F56: 8812 | G56: د ق د | H56: Special | I56: MHFDB8FS9L0026236 | J56: 404726710 | K56: 8 | L56: 114,989 | M56: Mohamed Theeb Ashaq Shaflout CO | N56: 555056259 | O56: Male | P56: Owner | Q56: Saudi | AJ56: =GBHdr!J66 -> 0
A57: 51 | B57: Toyota_Fortuner (25-2892) | C57: white | D57: 2020 | E57: A-Sedan | F57: 8813 | G57: د ق د | H57: Special | I57: MHFDB8FS0L0026156 | J57: 293726710 | K57: 7 | L57: 114,989 | M57: Mohamed Theeb Ashaq Shaflout CO | N57: 555056259 | O57: Male | P57: Owner | Q57: Saudi | AJ57: =GBHdr!J67 -> 0
A58: 52 | B58: Toyota_Fortuner (25-2892) | C58: white | D58: 2020 | E58: A-Sedan | F58: 8834 | G58: د ق د | H58: Special | I58: MHFDB8FS7L0026168 | J58: 411926710 | K58: 7 | L58: 114,989 | M58: Mohamed Theeb Ashaq Shaflout CO | N58: 555056259 | O58: Male | P58: Owner | Q58: Saudi | AJ58: =GBHdr!J68 -> 0
A59: 53 | B59: Toyota_Fortuner (25-2892) | C59: white | D59: 2020 | E59: A-Sedan | F59: 8832 | G59: د ق د | H59: Special | I59: MHFDB8FS3L0026233 | J59: 373726710 | K59: 8 | L59: 114,989 | M59: Mohamed Theeb Ashaq Shaflout CO | N59: 555056259 | O59: Male | P59: Owner | Q59: Saudi | AJ59: =GBHdr!J69 -> 0
A60: 54 | B60: Toyota_Fortuner (25-2892) | C60: white | D60: 2020 | E60: A-Sedan | F60: 8814 | G60: د ق د | H60: Special | I60: MHFDB8FS9L0026219 | J60: 214726710 | K60: 8 | L60: 114,989 | M60: Mohamed Theeb Ashaq Shaflout CO | N60: 555056259 | O60: Male | P60: Owner | Q60: Saudi | AJ60: =GBHdr!J70 -> 0
A61: 55 | B61: Toyota_Pickup (25-3720) | C61: white | D61: 1999 | E61: F-Pickup | F61: 1139 | G61: ا ع ل | H61: Private transport | I61: JTB31UNE5X0010559 | J61: 272604400 | K61: 2 | L61: 15902 | M61: Mohamed Theeb Ashaq Shaflout CO | N61: 555056259 | O61: Male | P61: Owner | Q61: Saudi | AJ61: =GBHdr!J71 -> 0
A62: 56 | B62: Nissan (142-1261) | C62: silver | D62: 2015 | E62: Navarra | F62: 8891 | G62: ب ر ا | H62: Private transport | I62: MNTACGD40Z0610886 | J62: 492512710 | K62: 5 | L62: 39103 | M62: Mohamed Theeb Ashaq Shaflout CO | N62: 555056259 | O62: Male | P62: Owner | Q62: Saudi | AJ62: =GBHdr!J72 -> 0
A63: 57 | B63: Isuzu_Pickup (97-3833) | C63: white | D63: 2011 | E63: F-Pickup | F63: 2562 | G63: ا ك م | H63: Private transport | I63: MPAEL33C8BH513089 | J63: 728940110 | K63: 5 | L63: 30103 | M63: Mohamed Theeb Ashaq Shaflout CO | N63: 555056259 | O63: Male | P63: Owner | Q63: Saudi | AJ63: =GBHdr!J73 -> 0
A64: 58 | B64: Toyota_Pickup (25-3720) | C64: white | D64: 2013 | E64: F-Pickup | F64: 7964 | G64: ا ن و | H64: Private transport | I64: MR0FX22G1D1370483 | J64: 200796210 | K64: 6 | L64: 25500 | M64: Mohamed Theeb Ashaq Shaflout CO | N64: 555056259 | O64: Male | P64: Owner | Q64: Saudi | AJ64: =GBHdr!J74 -> 0
A65: 59 | B65: Nissan (142-1261) | C65: white | D65: 2015 | E65: F-Pickup | F65: 9528 | G65: ا و ع | H65: Private transport | I65: 3N6DD23X9FK044636 | J65: 235045410 | K65: 6 | L65: 30500 | M65: Mohamed Theeb Ashaq Shaflout CO | N65: 555056259 | O65: Male | P65: Owner | Q65: Saudi | AJ65: =GBHdr!J78 -> 0
A66: 60 | B66: Nissan (142-1261) | C66: white | D66: 2014 | E66: F-Pickup | F66: 7483 | G66: ا و ح | H66: Private transport | I66: 3N6DD23S5EK065230 | J66: 9413410 | K66: 6 | L66: 28500 | M66: Mohamed Theeb Ashaq Shaflout CO | N66: 555056259 | O66: Male | P66: Owner | Q66: Saudi | AJ66: =GBHdr!J79 -> 0
A67: 61 | B67: Nissan (142-1261) | C67: white | D67: 2015 | E67: F-Pickup | F67: 7399 | G67: ا و ن | H67: Private transport | I67: 3N6DD23X5FK005249 | J67: 720879310 | K67: 6 | L67: 30500 | M67: Mohamed Theeb Ashaq Shaflout CO | N67: 555056259 | O67: Male | P67: Owner | Q67: Saudi | AJ67: =GBHdr!J80 -> 0
A68: 62 | B68: Isuzu_Pickup (2020-3833) | C68: white | D68: 2020 | E68: F-Pickup | F68: 4121 | G68: ب ر د | H68: Private transport | I68: MPAER33T0LT003218 | J68: 153506710 | K68: 5 | L68: 85500 | M68: Mohamed Theeb Ashaq Shaflout CO | N68: 555056259 | O68: Male | P68: Owner | Q68: Saudi | AJ68: =GBHdr!J81 -> 0
A69: 63 | B69: Nissan (142-1261) | C69: white | D69: 2012 | E69: F-Pickup | F69: 1293 | G69: ا ك ك | H69: Private transport | I69: MNTDD22S7C6002418 | J69: 208561110 | K69: 3 | L69: 30103 | M69: Mohamed Theeb Ashaq Shaflout CO | N69: 555056259 | O69: Male | P69: Owner | Q69: Saudi | AJ69: =GBHdr!J82 -> 0
A70: 64 | B70: Mercedes-Benz_TRUCK (63-4614) | C70: white | D70: 2008 | E70: G-Truck | F70: 8913 | G70: ب ر ا | H70: Private transport | I70: WDB9300461L275686 | J70: 667412710 | K70: 2 | L70: 80000 | M70: Mohamed Theeb Ashaq Shaflout CO | N70: 555056259 | O70: Male | P70: Owner | Q70: Saudi | AJ70: =GBHdr!J83 -> 0
A71: 65 | B71: Mercedes-Benz_TRUCK (63-4614) | C71: Dark blue | D71: 2008 | E71: G-Truck | F71: 8923 | G71: ب ر ا | H71: Private transport | I71: WDB9300341L304514 | J71: 47412710 | K71: 2 | L71: 80000 | M71: Mohamed Theeb Ashaq Shaflout CO | N71: 555056259 | O71: Male | P71: Owner | Q71: Saudi | AJ71: =GBHdr!J84 -> 0
A72: 66 | B72: Mercedes-Benz_TRUCK (63-4614) | C72: blue | D72: 2011 | E72: G-Truck | F72: 8926 | G72: ب ر ا | H72: Private transport | I72: WDB9302041L583864 | J72: 817412710 | K72: 2 | L72: 85000 | M72: Mohamed Theeb Ashaq Shaflout CO | N72: 555056259 | O72: Male | P72: Owner | Q72: Saudi | AJ72: =GBHdr!J85 -> 0
A73: 67 | B73: Mercedes-Benz_TRUCK (63-4614) | C73: Gray | D73: 2007 | E73: G-Truck | F73: 8928 | G73: ب ر ا | H73: Private transport | I73: WDB9302031L149594 | J73: 307412710 | K73: 2 | L73: 75000 | M73: Mohamed Theeb Ashaq Shaflout CO | N73: 555056259 | O73: Male | P73: Owner | Q73: Saudi | AJ73: =GBHdr!J86 -> 0
A74: 68 | B74: Mercedes-Benz_TRUCK (63-4614) | C74: Blue / red | D74: 2011 | E74: G-Truck | F74: 8925 | G74: ب ر ا | H74: Private transport | I74: WDB9302031L527482 | J74: 337412710 | K74: 2 | L74: 85000 | M74: Mohamed Theeb Ashaq Shaflout CO | N74: 555056259 | O74: Male | P74: Owner | Q74: Saudi | AJ74: =GBHdr!J87 -> 0
A75: 69 | B75: Isuzu_Truck (97-4435) | C75: white | D75: 2007 | E75: G-Truck | F75: 9445 | G75: ا ك س | H75: Private transport | I75: JAMLP34GX77P04025 | J75: 398898700 | K75: 2 | L75: 58000 | M75: Mohamed Theeb Ashaq Shaflout CO | N75: 555056259 | O75: Male | P75: Owner | Q75: Saudi | AJ75: =GBHdr!J88 -> 0
A76: 70 | B76: Isuzu_Pickup (97-3833) | C76: white | D76: 2005 | E76: F-Pickup | F76: 3680 | G76: ا س ى | H76: Private transport | I76: MPADL33C65H502558 | J76: 621556600 | K76: 5 | L76: 25000 | M76: Mohamed Theeb Ashaq Shaflout CO | N76: 555056259 | O76: Male | P76: Owner | Q76: Saudi | AJ76: =GBHdr!J89 -> 0
A77: 71 | B77: Mercedes-Benz_TRUCK (63-4614) | C77: white | D77: 2008 | E77: G-Truck | F77: 8922 | G77: ب ر ا | H77: Private transport | I77: WDB9302131L271653 | J77: 447412710 | K77: 2 | L77: 75000 | M77: Mohamed Theeb Ashaq Shaflout CO | N77: 555056259 | O77: Male | P77: Owner | Q77: Saudi | AJ77: =GBHdr!J90 -> 0
A78: 72 | B78: Mercedes-Benz_TRUCK (63-4614) | C78: silver | D78: 2007 | E78: G-Truck | F78: 8909 | G78: ب ر ا | H78: Private transport | I78: WDB9302031L148045 | J78: 77412710 | K78: 2 | L78: 72000 | M78: Mohamed Theeb Ashaq Shaflout CO | N78: 555056259 | O78: Male | P78: Owner | Q78: Saudi | AJ78: =GBHdr!J91 -> 0
A79: 73 | B79: Mercedes-Benz_TRUCK (63-4614) | C79: silver | D79: 2007 | E79: G-Truck | F79: 8929 | G79: ب ر ا | H79: Private transport | I79: WDB9302031L151413 | J79: 396412710 | K79: 2 | L79: 72000 | M79: Mohamed Theeb Ashaq Shaflout CO | N79: 555056259 | O79: Male | P79: Owner | Q79: Saudi | AJ79: =GBHdr!J92 -> 0
A80: 74 | B80: Mercedes-Benz_TRUCK (63-4614) | C80: Gray | D80: 2007 | E80: G-Truck | F80: 8927 | G80: ب ر ا | H80: Private transport | I80: WDB9302031L153554 | J80: 17412710 | K80: 2 | L80: 72000 | M80: Mohamed Theeb Ashaq Shaflout CO | N80: 555056259 | O80: Male | P80: Owner | Q80: Saudi | AJ80: =GBHdr!J93 -> 0
A81: 75 | B81: Mercedes-Benz_TRUCK (63-4614) | C81: Gray | D81: 2007 | E81: G-Truck | F81: 8969 | G81: ب ر ا | H81: Private transport | I81: WDB9302031L228411 | J81: 787412710 | K81: 2 | L81: 72000 | M81: Mohamed Theeb Ashaq Shaflout CO | N81: 555056259 | O81: Male | P81: Owner | Q81: Saudi | AJ81: =GBHdr!J94 -> 0
A82: 76 | B82: Mercedes-Benz_TRUCK (63-4614) | C82: white | D82: 1991 | E82: G-Truck | F82: 8756 | G82: ا ح ا | H82: Private transport | I82: WDB65913715739663 | J82: 918887500 | K82: 2 | L82: 82000 | M82: Mohamed Theeb Ashaq Shaflout CO | N82: 555056259 | O82: Male | P82: Owner | Q82: Saudi | AJ82: =GBHdr!J95 -> 0
A83: 77 | B83: Mercedes-Benz_TRUCK (63-4614) | C83: white | D83: 1995 | E83: G-Truck | F83: 8306 | G83: ا ا ه | H83: public transfer | I83: WDB64913655490292 | J83: 62639200 | K83: 2 | L83: 82000 | M83: Mohamed Theeb Ashaq Shaflout CO | N83: 555056259 | O83: Male | P83: Owner | Q83: Saudi | AJ83: =GBHdr!J96 -> 0
A84: 78 | B84: Mercedes-Benz_TRUCK (63-4614) | C84: red | D84: 1991 | E84: G-Truck | F84: 3692 | G84: ا س ى | H84: Private transport | I84: WDB62514815720824 | J84: 665806600 | K84: 2 | L84: 80000 | M84: Mohamed Theeb Ashaq Shaflout CO | N84: 555056259 | O84: Male | P84: Owner | Q84: Saudi | AJ84: =GBHdr!J97 -> 0
A85: 79 | B85: Mercedes-Benz_TRUCK (63-4614) | C85: Gray | D85: 1981 | E85: G-Truck | F85: 5537 | G85: ا ا ه | H85: public transport | I85: 34 301 454 748 989 | J85: 907347200 | K85: 2 | L85: 79509 | M85: Mohamed Theeb Ashaq Shaflout CO | N85: 555056259 | O85: Male | P85: Owner | Q85: Saudi | AJ85: =GBHdr!J98 -> 0
A86: 80 | B86: Mercedes-Benz_TRUCK (63-4614) | C86: Gray | D86: 1980 | E86: G-Truck | F86: 1998 | G86: ا ا ه | H86: public transport | I86: 14690632 | J86: 538990200 | K86: 2 | L86: 82000 | M86: Mohamed Theeb Ashaq Shaflout CO | N86: 555056259 | O86: Male | P86: Owner | Q86: Saudi | AJ86: =GBHdr!J99 -> 0
A87: 81 | B87: Mercedes-Benz_TRUCK (63-4614) | C87: white | D87: 2005 | E87: G-Truck | F87: 2766 | G87: ا ل و | H87: Private transport | I87: WDB9333041K981884 | J87: 286367110 | K87: 2 | L87: 83000 | M87: Mohamed Theeb Ashaq Shaflout CO | N87: 555056259 | O87: Male | P87: Owner | Q87: Saudi | AJ87: =GBHdr!J100 -> 0
A88: 82 | B88: Mercedes-Benz_TRUCK (63-4614) | C88: Gray | D88: 1982 | E88: G-Truck | F88: 5684 | G88: ا ا ا | H88: Private transport | I88: WDB38700614885838 | J88: 594145500 | K88: 2 | L88: 34870 | M88: Mohamed Theeb Ashaq Shaflout CO | N88: 555056259 | O88: Male | P88: Owner | Q88: Saudi | AJ88: =GBHdr!J102 -> 0
A89: 83 | B89: Mercedes-Benz_TRUCK (63-4614) | C89: blue | D89: 1994 | E89: G-Truck | F89: 3690 | G89: ا ا ك | H89: public transport | I89: WDB6591421K061127 | J89: 712565800 | K89: 2 | L89: 79509 | M89: Mohamed Theeb Ashaq Shaflout CO | N89: 555056259 | O89: Male | P89: Owner | Q89: Saudi | AJ89: =GBHdr!J103 -> 0
A90: 84 | B90: Mercedes-Benz_TRUCK (63-4614) | C90: white | D90: 2007 | E90: G-Truck | F90: 7919 | G90: ا ن د | H90: Private transport | I90: WDB9333141L177756 | J90: 406252210 | K90: 2 | L90: 85000 | M90: Mohamed Theeb Ashaq Shaflout CO | N90: 555056259 | O90: Male | P90: Owner | Q90: Saudi | AJ90: =GBHdr!J104 -> 0
A91: 85 | B91: Mercedes-Benz_TRUCK (63-4614) | C91: Gray | D91: 1975 | E91: G-Truck | F91: 8314 | G91: ا ب و | H91: public transport | I91: 0000 13802 | J91: 235205200 | K91: 2 | L91: 75202 | M91: Mohamed Theeb Ashaq Shaflout CO | N91: 555056259 | O91: Male | P91: Owner | Q91: Saudi | AJ91: =GBHdr!J105 -> 0
A92: 86 | B92: Mercedes-Benz_TRUCK (63-4614) | C92: green | D92: 1994 | E92: G-Truck | F92: 6875 | G92: ا د ك | H92: Private transport | I92: WDB6581491K036383 | J92: 512238800 | K92: 2 | L92: 75202 | M92: Mohamed Theeb Ashaq Shaflout CO | N92: 555056259 | O92: Male | P92: Owner | Q92: Saudi | AJ92: =GBHdr!J106 -> 0
A93: 87 | B93: Mercedes-Benz_TRUCK (63-4614) | C93: Gray | D93: 1993 | E93: G-Truck | F93: 1940 | G93: ا ا ه | H93: public transport | I93: 34 300 355 945 904 | J93: 702442200 | K93: 2 | L93: 79509 | M93: Mohamed Theeb Ashaq Shaflout CO | N93: 555056259 | O93: Male | P93: Owner | Q93: Saudi | AJ93: =GBHdr!J107 -> 0
A94: 88 | B94: Mercedes-Benz_TRUCK (63-4614) | C94: orange | D94: 1995 | E94: G-Truck | F94: 5933 | G94: ا ا ا | H94: Private transport | I94: WDB6251371K125129 | J94: 170378600 | K94: 2 | L94: 82000 | M94: Mohamed Theeb Ashaq Shaflout CO | N94: 555056259 | O94: Male | P94: Owner | Q94: Saudi | AJ94: =GBHdr!J108 -> 0
A95: 89 | B95: Mercedes-Benz_TRUCK (63-4614) | C95: orange | D95: 1990 | E95: G-Truck | F95: 3505 | G95: ا س ى | H95: Private transport | I95: WDB62302815474734 | J95: 407510500 | K95: 2 | L95: 54953 | M95: Mohamed Theeb Ashaq Shaflout CO | N95: 555056259 | O95: Male | P95: Owner | Q95: Saudi | AJ95: =GBHdr!J109 -> 0
A96: 90 | B96: Mercedes-Benz_TRUCK (63-4614) | C96: Gray | D96: 1976 | E96: G-Truck | F96: 8312 | G96: ا ب و | H96: public transport | I96: 346 311 142 734 01 | J96: 258380200 | K96: 2 | L96: 47706 | M96: Mohamed Theeb Ashaq Shaflout CO | N96: 555056259 | O96: Male | P96: Owner | Q96: Saudi | AJ96: =GBHdr!J110 -> 0
A97: 91 | B97: Mercedes-Benz_TRUCK (63-4614) | C97: white | D97: 1995 | E97: G-Truck | F97: 8309 | G97: ا ا ه | H97: public transport | I97: WDB64913655490277 | J97: 162639200 | K97: 2 | L97: 82000 | M97: Mohamed Theeb Ashaq Shaflout CO | N97: 555056259 | O97: Male | P97: Owner | Q97: Saudi | AJ97: =GBHdr!J112 -> 0
A98: 92 | B98: Mercedes-Benz_TRUCK (63-4614) | C98: blue | D98: 1981 | E98: G-Truck | F98: 5588 | G98: ا ا ه | H98: public transport | I98: 39 544 214 764 356 | J98: 559298200 | K98: 2 | L98: 80000 | M98: Mohamed Theeb Ashaq Shaflout CO | N98: 555056259 | O98: Male | P98: Owner | Q98: Saudi | AJ98: =GBHdr!J113 -> 0
A99: 93 | B99: Mercedes-Benz_TRUCK (63-4614) | C99: orange | D99: 1990 | E99: G-Truck | F99: 8331 | G99: ا ا ه | H99: public transport | I99: WDB62502815439968 | J99: 534120500 | K99: 2 | L99: 53386 | M99: Mohamed Theeb Ashaq Shaflout CO | N99: 555056259 | O99: Male | P99: Owner | Q99: Saudi | AJ99: =GBHdr!J114 -> 0
A100: 94 | B100: Mercedes-Benz_TRUCK (63-4614) | C100: orange | D100: 1990 | E100: G-Truck | F100: 5591 | G100: ا ا ه | H100: public transport | I100: WD61904915469754 | J100: 613441600 | K100: 2 | L100: 67920 | M100: Mohamed Theeb Ashaq Shaflout CO | N100: 555056259 | O100: Male | P100: Owner | Q100: Saudi | AJ100: =GBHdr!J115 -> 0
A101: 95 | B101: Mercedes-Benz_TRUCK (63-4614) | C101: yellow | D101: 2007 | E101: G-Truck | F101: 8864 | G101: ا ق ى | H101: Private transport | I101: WDB9301431L217349 | J101: 544017010 | K101: 2 | L101: 130000 | M101: Mohamed Theeb Ashaq Shaflout CO | N101: 555056259 | O101: Male | P101: Owner | Q101: Saudi | AJ101: =GBHdr!J116 -> 0
A102: 96 | B102: Mercedes-Benz_TRUCK (63-4614) | C102: Gray | D102: 2007 | E102: G-Truck | F102: 8907 | G102: ب ر ا | H102: Private transport | I102: WDB9302031L237155 | J102: 877412710 | K102: 2 | L102: 85000 | M102: Mohamed Theeb Ashaq Shaflout CO | N102: 555056259 | O102: Male | P102: Owner | Q102: Saudi | AJ102: =GBHdr!J117 -> 0
A103: 97 | B103: Isuzu_Truck (97-4435) | C103: white | D103: 2001 | E103: G-Truck | F103: 3673 | G103: ا س ى | H103: Private transport | I103: JAAJP24G717K00778 | J103: 608372500 | K103: 2 | L103: 27828 | M103: Mohamed Theeb Ashaq Shaflout CO | N103: 555056259 | O103: Male | P103: Owner | Q103: Saudi | AJ103: =GBHdr!J119 -> 0
A104: 98 | B104: Mercedes-TRUCK | C104: Gray | D104: 1980 | E104: G-Truck | F104: 7780 | G104: ب ب ى | H104: Private transport | I104: 34 631 154 663 305 | J104: 263272700 | K104: 2 | L104: 75000 | M104: Mohamed Theeb Ashaq Shaflout CO | N104: 555056259 | O104: Male | P104: Owner | Q104: Saudi | AJ104: =GBHdr!J120 -> 0
A105: 99 | B105: TOYOTA GXR | C105: golden | D105: 2016 | E105: GXR | F105: 7169 | G105: ح و و | H105: Special | I105: JTMHX01J1G4116994 | J105: 946923510 | K105: 8 | L105: 199000 | M105: Mohamed Theeb Ashaq Shaflout CO | N105: 555056259 | O105: Male | P105: Owner | Q105: Saudi | AJ105: =GBHdr!J121 -> 0
A106: 100 | B106: LEXUS -LX570-SUV | C106: white | D106: 2019 | E106: LX 570 | F106: 3332 | G106: د ط ص | H106: Special | I106: JTJHY00W3K4283891 | J106: 204798610 | K106: 8 | L106: 391000 | M106: Mohamed Theeb Ashaq Shaflout CO | N106: 555056259 | O106: Male | P106: Owner | Q106: Saudi | AJ106: =GBHdr!J122 -> 0
A107: 101 | B107: Gmc Yukon | C107: Light golden | D107: 2017 | E107: YUKON | F107: 8953 | G107: د ح و | H107: private | I107: 1GKS28EC9HR109265 | J107: 152131610 | K107: 9 | L107: 237000 | M107: Mohamed Theeb Ashaq Shaflout CO | N107: 555056259 | O107: Male | P107: Owner | Q107: Saudi | AJ107: =GBHdr!J123 -> 0
A108: 102 | B108: TOYOTA GXR | C108: golden | D108: 2013 | E108: GX | F108: 2549 | G108: ح ا ق | H108: Special | I108: JTMHU09J0D4069966 | J108: 981633210 | K108: 7 | L108: 135000 | M108: Mohamed Theeb Ashaq Shaflout CO | N108: 555056259 | O108: Male | P108: Owner | Q108: Saudi | AJ108: =GBHdr!J124 -> 0
A109: 103 | B109: TOYOTA GXR | C109: golden | D109: 2013 | E109: GXR | F109: 7658 | G109: ح ح ا | H109: Special | I109: JTMHU09J7D4072931 | J109: 168746210 | K109: 7 | L109: 135000 | M109: Mohamed Theeb Ashaq Shaflout CO | N109: 555056259 | O109: Male | P109: Owner | Q109: Saudi | AJ109: =GBHdr!J125 -> 0
A110: 104 | B110: Mercedes-Benz_TRUCK (63-4614) | C110: white | D110: 2006 | E110: G-Truck | F110: 8815 | G110: ا ق ى | H110: Private transport | I110: WDB9333041L070321 | J110: 510996010 | K110: 2 | L110: 83000 | M110: Mohamed Theeb Ashaq Shaflout CO | N110: 555056259 | O110: Male | P110: Owner | Q110: Saudi | AJ110: =GBHdr!J126 -> 0
A111: 105 | B111: Nissan (142-30) | C111: white | D111: 2008 | E111: F-Pickup | F111: 2611 | G111: ا ح هـ | H111: Private transport | I111: JN6DD21S58X108115 | J111: 187327800 | K111: 3 | L111: 15902 | M111: Mohamed Theeb Ashaq Shaflout CO | N111: 555056259 | O111: Male | P111: Owner | Q111: Saudi | AJ111: =GBHdr!J127 -> 0
A112: 106 | B112: Mercedes-Benz_TRUCK (63-4614) | C112: white | D112: 2005 | E112: G-Truck | F112: 9821 | G112: ا س ك | H112: Private transport | I112: WDB9301421K954805 | J112: 785391900 | K112: 2 | L112: 100000 | M112: Mohamed Theeb Ashaq Shaflout CO | N112: 555056259 | O112: Male | P112: Owner | Q112: Saudi | AJ112: =GBHdr!J128 -> 0
A113: 107 | B113: Mitsubishi - Canter | C113: white | D113: 1998 | E113: Canter | F113: 5679 | G113: ا ا ا | H113: Private transport | I113: JMYFE635DEKA15229 | J113: 713987400 | K113: 3 | L113: 48500 | M113: Mohamed Theeb Ashaq Shaflout CO | N113: 555056259 | O113: Male | P113: Owner | Q113: Saudi | AJ113: =GBHdr!J129 -> 0
A114: 108 | B114: Mercedes-Benz_TRUCK (63-4614) | C114: RED | D114: 1987 | E114: G-Truck | F114: 1931 | G114: ا ا هـ | H114: public transport | I114: WDB61904815297952 | J114: 469095400 | K114: 2 | L114: 80000 | M114: Mohamed Theeb Ashaq Shaflout CO | N114: 555056259 | O114: Male | P114: Owner | Q114: Saudi | AJ114: =GBHdr!J130 -> 0
A115: 109 | B115: Mercedes-Benz_TRUCK (63-4614) | C115: Gray | D115: 1981 | E115: G-Truck | F115: 8312 | G115: ا ا هـ | H115: public transport | I115: 34 300 354743875 | J115: 577155100 | K115: 2 | L115: 75000 | M115: Mohamed Theeb Ashaq Shaflout CO | N115: 555056259 | O115: Male | P115: Owner | Q115: Saudi | AJ115: =GBHdr!J131 -> 0
A116: 110 | B116: Isuzu_Pickup (97-3833) | C116: white | D116: 2012 | E116: F-Pickup | F116: 3911 | G116: ا ن ط | H116: Private transport | I116: MPAEL33T4CT121953 | J116: 919034210 | K116: 5 | L116: 20500 | M116: Mohamed Theeb Ashaq Shaflout CO | N116: 555056259 | O116: Male | P116: Owner | Q116: Saudi | AJ116: =GBHdr!J132 -> 0
A117: 111 | B117: Nissan (142-1261) | C117: white | D117: 2015 | E117: F-Pickup | F117: 7079 | G117: ب ح ع | H117: Private transport | I117: 3N6DO23X2FK060158 | J117: 727400610 | K117: 5 | L117: 25500 | M117: Mohamed Theeb Ashaq Shaflout CO | N117: 555056259 | O117: Male | P117: Owner | Q117: Saudi | AJ117: =GBHdr!J133 -> 0
A118: 112 | B118: Isuzu_Pickup (97-3833) | C118: white | D118: 2016 | E118: F-Pickup | F118: 8389 | G118: ب ب ي | H118: Private transport | I118: MPAEL3919GT032231 | J118: 129356610 | K118: 3 | L118: 35500 | M118: Mohamed Theeb Ashaq Shaflout CO | N118: 555056259 | O118: Male | P118: Owner | Q118: Saudi | AJ118: =GBHdr!J134 -> 0
A119: 113 | B119: Toyota_Pickup (25-3720) | C119: white | D119: 2015 | E119: F-Pickup | F119: 8184 | G119: ب ا ا | H119: Private transport | I119: MR0EW12G9F3031213 | J119: 978492410 | K119: 6 | L119: 27500 | M119: Mohamed Theeb Ashaq Shaflout CO | N119: 555056259 | O119: Male | P119: Owner | Q119: Saudi | AJ119: =GBHdr!J135 -> 0
A120: 114 | B120: Nissan (142-1261) | C120: silver | D120: 2015 | E120: F-Pickup | F120: 8906 | G120: ب ر ا | H120: Private transport | I120: MNTACGD40Z0610887 | J120: 882512710 | K120: 5 | L120: 25500 | M120: Mohamed Theeb Ashaq Shaflout CO | N120: 555056259 | O120: Male | P120: Owner | Q120: Saudi | AJ120: =GBHdr!J136 -> 0
A121: 115 | B121: JAC_PICKUP (187-4942) | C121: white | D121: 2015 | E121: F-Pickup | F121: 5689 | G121: ا ي و | H121: Private transport | I121: LJ13PDBC0F6007961 | J121: 473410 | K121: 5 | L121: 45500 | M121: Mohamed Theeb Ashaq Shaflout CO | N121: 555056259 | O121: Male | P121: Owner | Q121: Saudi | AJ121: =GBHdr!J137 -> 0
A122: 116 | B122: CRANE - SANY | C122: yellow / Red | D122: 2014 | E122: SANY | F122: 4400 | G122: ا ا ح | H122: اشغال عامة | I122: LFCNPG6P7E2001805 | J122: 701822410 | K122: 2 | L122: 850000 | M122: Mohamed Theeb Ashaq Shaflout CO | N122: 555056259 | O122: Male | P122: Owner | Q122: Saudi | AJ122: =GBHdr!J138 -> 0
A123: 117 | B123: Mercedes-Benz_TRUCK (63-4614) | C123: Green | D123: 1991 | E123: G-Truck | F123: 3533 | G123: ا س ي | H123: Private transport | I123: WDB65913715714648 | J123: 480400500 | K123: 2 | L123: 70000 | M123: Mohamed Theeb Ashaq Shaflout CO | N123: 555056259 | O123: Male | P123: Owner | Q123: Saudi | AJ123: =GBHdr!J139 -> 0
A124: 118 | B124: Toyota_Pickup (25-3720) | C124: Beige | D124: 2009 | E124: F-Pickup | F124: 2224 | G124: ا ر س | H124: Private transport | I124: JTFLJ73J296050410 | J124: 960940900 | K124: 3 | L124: 45500 | M124: Mohamed Theeb Ashaq Shaflout CO | N124: 555056259 | O124: Male | P124: Owner | Q124: Saudi | AJ124: =GBHdr!J140 -> 0
A125: 119 | B125: Isuzu_Pickup (97-3833) | C125: white | D125: 2008 | E125: F-Pickup | F125: 4841 | G125: أ د ق | H125: Private transport | I125: MPAEL34C98H567413 | J125: 551421900 | K125: 3 | L125: 43500 | M125: Mohamed Theeb Ashaq Shaflout CO | N125: 555056259 | O125: Male | P125: Owner | Q125: Saudi | AJ125: =GBHdr!J141 -> 0
B126: Mercedes-Benz | C126: orange/green | D126: 1992 | E126: G-Truck | F126: 5079 | G126: ا ر ح | H126: public transport | I126: WDB65512215900853 | J126: 732639400 | K126: 2 | L126: 130000 | M126: Mohamed Theeb Ashaq Shaflout CO | N126: 506735697 | O126: Male | P126: Owner | Q126: Saudi
B127: Mercedes-Benz_TRUCK (63-4614) | C127: white | D127: 2013 | E127: G-Truck | F127: 5062 | G127: ا ر ح | H127: Private transport | I127: WDB9340321L706653 | J127: 147990710 | K127: 2 | L127: 95000 | M127: Mohamed Theeb Ashaq Shaflout CO | N127: 555056259 | O127: Male | P127: Owner | Q127: Saudi
B128: Mercedes-Benz | C128: Dark blue | D128: 2017 | E128: G-Truck | F128: 1463 | G128: ا ر ق | H128: public transport | I128: WDB96340310085123 | J128: 414582810 | K128: 2 | L128: 145000 | M128: Mohamed Theeb Ashaq Shaflout CO | N128: 503087023 | O128: Male | P128: Owner | Q128: Saudi
B129: Mercedes-Benz | C129: white | D129: 2012 | E129: G-Truck | F129: 3170 | G129: ا ر ن | H129: public transport | I129: WD39HDAA2CL625334 | J129: 264518810 | K129: 2 | L129: 230000 | M129: Mohamed Theeb Ashaq Shaflout CO | N129: 503087023 | O129: Male | P129: Owner | Q129: Saudi
B130: Mercedes-Benz | C130: white | D130: 2012 | E130: G-Truck | F130: 3169 | G130: ا ر ن | H130: public transport | I130: WD39HAB7CL639772 | J130: 54518810 | K130: 2 | L130: 230000 | M130: Mohamed Theeb Ashaq Shaflout CO | N130: 503087023 | O130: Male | P130: Owner | Q130: Saudi
B131: Mercedes-Benz_TRUCK (63-4614) | C131: white | D131: 2003 | E131: G-Truck | F131: 8815 | G131: ا ق ى | H131: Private transport | I131: WDB9333041K842347 | J131: 561996010 | K131: 2 | L131: 83000 | M131: Mohamed Theeb Ashaq Shaflout CO | N131: 506735697 | O131: Male | P131: Owner | Q131: Saudi
B132: Mercedes-Benz_TRUCK (63-4614) | C132: yellow | D132: 1996 | E132: G-Truck | F132: 5052 | G132: ا ر ح | H132: public transport | I132: WDB6555831K203474 | J132: 521301500 | K132: 2 | L132: 95000 | M132: Mohamed Theeb Ashaq Shaflout CO | N132: 506735697 | O132: Male | P132: Owner | Q132: Saudi
B133: Mercedes-Benz_TRUCK (63-4614) | C133: white | D133: 2014 | E133: G-Truck | F133: 5699 | G133: ا ر ح | H133: public transport | I133: WDB9340321L801198 | J133: 947990710 | K133: 2 | L133: 90000 | M133: Mohamed Theeb Ashaq Shaflout CO | N133: 506735697 | O133: Male | P133: Owner | Q133: Saudi
B134: Toyota VXR | C134: white | D134: 2021 | E134: VXR | F134: 2772 | G134: ج ن ك | H134: Special | I134: JTMHY05J7M4098617 | J134: 253111810 | K134: 8 | M134: Mohamed Theeb Ashaq Shaflout CO | N134: 506735697 | O134: Male | P134: Owner | Q134: Saudi
B135: Mercedes-Benz_TRUCK | D135: 1990 | E135: Truck | F135: 1986 | G135: أ أ هـ | H135: public transport | I135: WDB65813915542980 | J135: 427358400 | K135: 2 | L135: 85000 | M135: Mohamed Theeb Ashaq Shaflout CO | N135: 506735697 | O135: Male | P135: Owner | Q135: Saudi
B136: Isuzu_MU-X | C136: silver | D136: 2021 | E136: MU-Mix | F136: 3258 | G136: ر أ ب | H136: Special | I136: MPAER88T5MT005280 | J136: 2047810 | K136: 7 | L136: 109000 | M136: Mohamed Theeb Ashaq Shaflout CO | N136: 506735697 | O136: Male | P136: Owner | Q136: Saudi
B137: Isuzu_MU-X | C137: Gray | D137: 2021 | E137: MU-Mix | F137: 3259 | G137: ر أ ب | H137: Special | I137: MPAER88TXMT005386 | J137: 502047810 | K137: 7 | L137: 109000 | M137: Mohamed Theeb Ashaq Shaflout CO | N137: 506735697 | O137: Male | P137: Owner | Q137: Saudi
B138: Isuzu_Pickup | C138: white | D138: 2019 | E138: F-Pickup | F138: 8689 | G138: ب ر ط | H138: Private transport | I138: MPAER3416KT010069 | J138: 820082710 | K138: 3 | M138: Mohamed Theeb Ashaq Shaflout CO | N138: 506735697 | O138: Male | P138: Owner | Q138: Saudi
B139: Isuzu_Pickup | C139: white | D139: 2018 | E139: F-Pickup | F139: 8690 | G139: ب ر ط | H139: Private transport | I139: MPAER3418KT010056 | J139: 330082710 | K139: 3 | M139: Mohamed Theeb Ashaq Shaflout CO | N139: 506735697 | O139: Male | P139: Owner | Q139: Saudi
B140: Isuzu_Pickup | C140: white | D140: 2019 | E140: F-Pickup | F140: 8691 | G140: ب ر ط | H140: Private transport | I140: MPAER3419KT010048 | J140: 40082710 | K140: 3 | M140: Mohamed Theeb Ashaq Shaflout CO | N140: 506735697 | O140: Male | P140: Owner | Q140: Saudi
B141: Isuzu_Pickup | C141: white | D141: 2019 | E141: F-Pickup | F141: 9692 | G141: ب ر ط | H141: Private transport | I141: MPAER3419KT010065 | J141: 840082710 | K141: 3 | M141: Mohamed Theeb Ashaq Shaflout CO | N141: 506735697 | O141: Male | P141: Owner | Q141: Saudi
B142: Isuzu_Pickup | C142: white | D142: 2019 | E142: F-Pickup | F142: 8693 | G142: ب ر ط | H142: Private transport | I142: MPAER3418KT010042 | J142: 450082710 | K142: 3 | M142: Mohamed Theeb Ashaq Shaflout CO | N142: 506735697 | O142: Male | P142: Owner | Q142: Saudi
B143: Isuzu_Pickup | C143: white | D143: 2019 | E143: F-Pickup | F143: 8694 | G143: ب ر ط | H143: Private transport | I143: MPAER3419KT010051 | J143: 850082710 | K143: 3 | M143: Mohamed Theeb Ashaq Shaflout CO | N143: 506735697 | O143: Male | P143: Owner | Q143: Saudi
B144: Isuzu_Pickup | C144: white | D144: 2019 | E144: F-Pickup | F144: 9248 | G144: ب ر ك | H144: Private transport | I144: MPAEL3917LT007192 | J144: 330387710 | K144: 3 | M144: Mohamed Theeb Ashaq Shaflout CO | N144: 506735697 | O144: Male | P144: Owner | Q144: Saudi
B145: Mercedes-Benz | D145: 2011 | E145: Truck | F145: 5678 | G145: أ ر ح | H145: public transport | I145: WDB9302031L527482 | J145: 337412710 | K145: 2 | M145: Mohamed Theeb Ashaq Shaflout CO | N145: 506735697 | O145: Male | P145: Owner | Q145: Saudi
B146: Mercedes-Benz | C146: BLUE | D146: 2011 | E146: Truck | F146: 5693 | G146: أ ر ح | H146: public transport | I146: WDB9302041L583864 | J146: 817412710 | K146: 2 | M146: Mohamed Theeb Ashaq Shaflout CO | N146: 506735697 | O146: Male | P146: Owner | Q146: Saudi
B147: Isuzu_Pickup | C147: white | D147: 2019 | E147: F-Pickup | F147: 8678 | G147: ب ر ط | H147: Private transport | I147: MPAEL3317KT009077 | J147: 949972710 | K147: 5 | M147: Mohamed Theeb Ashaq Shaflout CO | N147: 506735697 | O147: Male | P147: Owner | Q147: Saudi
B148: Isuzu_Pickup | C148: white | D148: 2019 | E148: F-Pickup | F148: 8679 | G148: ب ر ط | H148: Private transport | I148: MPAEL3317KT008334 | J148: 69972710 | K148: 5 | M148: Mohamed Theeb Ashaq Shaflout CO | N148: 506735697 | O148: Male | P148: Owner | Q148: Saudi
B149: Isuzu_Pickup | C149: white | D149: 2019 | E149: F-Pickup | F149: 8680 | G149: ب ر ط | H149: Private transport | I149: MPAEL3316KT009085 | J149: 279972710 | K149: 5 | M149: Mohamed Theeb Ashaq Shaflout CO | N149: 506735697 | O149: Male | P149: Owner | Q149: Saudi
B150: Isuzu_Pickup | C150: white | D150: 2019 | E150: F-Pickup | F150: 8681 | G150: ب ر ط | H150: Private transport | I150: MPAEL3316KT008437 | J150: 879972710 | K150: 5 | M150: Mohamed Theeb Ashaq Shaflout CO | N150: 506735697 | O150: Male | P150: Owner | Q150: Saudi
B151: Isuzu_Pickup | C151: white | D151: 2019 | E151: F-Pickup | F151: 8682 | G151: ب ر ط | H151: Private transport | I151: MPAEL3317KT009080 | J151: 589972710 | K151: 5 | M151: Mohamed Theeb Ashaq Shaflout CO | N151: 506735697 | O151: Male | P151: Owner | Q151: Saudi
B152: Isuzu_Pickup | C152: white | D152: 2019 | E152: F-Pickup | F152: 8683 | G152: ب ر ط | H152: Private transport | I152: MPAEL3317KT009094 | J152: 299972710 | K152: 5 | M152: Mohamed Theeb Ashaq Shaflout CO | N152: 506735697 | O152: Male | P152: Owner | Q152: Saudi
B153: Isuzu_Pickup | C153: white | D153: 2021 | E153: F-Pickup | F153: 6581 | G153: ب س ع | H153: Private transport | I153: M3GEL3319MB000027 | J153: 459333810 | K153: 5 | M153: Mohamed Theeb Ashaq Shaflout CO | N153: 506735697 | O153: Male | P153: Owner | Q153: Saudi
B154: Isuzu_Pickup | C154: white | D154: 2021 | E154: F-Pickup | F154: 4816 | G154: ب س م | H154: Private transport | I154: M3GEL3315MB001787 | J154: 951047810 | K154: 5 | L154: 74000 | M154: Mohamed Theeb Ashaq Shaflout CO | N154: 506735697 | O154: Male | P154: Owner | Q154: Saudi
B155: Isuzu_Pickup | C155: white | D155: 2021 | E155: F-Pickup | F155: 4817 | G155: ب س م | H155: Private transport | I155: M3GEL3314MB001778 | J155: 281047810 | K155: 5 | L155: 74000 | M155: Mohamed Theeb Ashaq Shaflout CO | N155: 506735697 | O155: Male | P155: Owner | Q155: Saudi
B156: Isuzu_Pickup | C156: white | D156: 2021 | E156: F-Pickup | F156: 4819 | G156: ب س م | H156: Private transport | I156: M3GEL3314MB001781 | J156: 981047810 | K156: 5 | L156: 74000 | M156: Mohamed Theeb Ashaq Shaflout CO | N156: 506735697 | O156: Male | P156: Owner | Q156: Saudi
B157: Isuzu | C157: white | D157: 2019 | E157: Truck | F157: 8684 | G157: ب ر ط | H157: Private transport | I157: JAAJP24TXK7K02149 | J157: 200082710 | K157: 3 | M157: Mohamed Theeb Ashaq Shaflout CO | N157: 506735697 | O157: Male | P157: Owner | Q157: Saudi
B158: Isuzu | C158: white | D158: 2019 | E158: Truck | F158: 8685 | G158: ب ر ط | H158: Private transport | I158: JAAJP24T6K7K02147 | J158: 800082710 | K158: 3 | M158: Mohamed Theeb Ashaq Shaflout CO | N158: 506735697 | O158: Male | P158: Owner | Q158: Saudi
B159: Isuzu | C159: white | D159: 2019 | E159: Truck | F159: 8686 | G159: ب ر ط | H159: Private transport | I159: JAAJP24T3K7K02140 | J159: 510082710 | K159: 3 | M159: Mohamed Theeb Ashaq Shaflout CO | N159: 506735697 | O159: Male | P159: Owner | Q159: Saudi
B160: Isuzu | C160: white | D160: 2019 | E160: Truck | F160: 8687 | G160: ب ر ط | H160: Private transport | I160: JAAJP24T0K7K02144 | J160: 120082710 | K160: 3 | M160: Mohamed Theeb Ashaq Shaflout CO | N160: 506735697 | O160: Male | P160: Owner | Q160: Saudi
B161: Isuzu | C161: white | D161: 2019 | E161: Truck | F161: 8688 | G161: ب ر ط | H161: Private transport | I161: JAAJP24T8K7K02148 | J161: 420082710 | K161: 3 | M161: Mohamed Theeb Ashaq Shaflout CO | N161: 506735697 | O161: Male | P161: Owner | Q161: Saudi
B162: Isuzu | C162: white | D162: 2009 | E162: Pickup | F162: 7106 | G162: أ ر هـ | H162: Private transport | I162: JAMJP24H597K00141 | J162: 146232900 | K162: 3 | M162: Mohamed Theeb Ashaq Shaflout CO | N162: 506735697 | O162: Male | P162: Owner | Q162: Saudi
A163: 120 | B163: Mercedes-Benz_TRUCK (63-4614) | C163: red | D163: 2008 | E163: G-Truck | F163: 7969 | G163: ا م ق | H163: Private transport | I163: WDB9340321L308005 | J163: 688642210 | K163: 2 | L163: 70000 | M163: Mohamed Theeb Ashaq Shaflout CO | N163: 597690078 | O163: Male | P163: Owner | Q163: Saudi | AJ163: =GBHdr!J143 -> 0
A164: 121 | B164: Mercedes-Benz_TRUCK (63-4614) | C164: white | D164: 2007 | E164: G-Truck | F164: 7929 | G164: ا ن د | H164: Private transport | I164: WDB9333171L244383 | J164: 661942210 | K164: 2 | L164: 140000 | M164: Mohamed Theeb Ashaq Shaflout CO | N164: 597690078 | O164: Male | P164: Owner | Q164: Saudi | AJ164: =GBHdr!J144 -> 0
A165: 122 | B165: Mercedes-Benz_TRUCK (63-4614) | C165: white | D165: 2013 | E165: G-Truck | F165: 8386 | G165: ا ب و | H165: public transport | I165: WDB9333175L731835 | J165: 96293210 | K165: 2 | L165: 130000 | M165: Mohamed Theeb Ashaq Shaflout CO | N165: 597690078 | O165: Male | P165: Owner | Q165: Saudi | AJ165: =GBHdr!J145 -> 0
A166: 123 | B166: Mercedes-Benz_TRUCK (63-4614) | C166: white | D166: 2013 | E166: G-Truck | F166: 8389 | G166: ا ب و | H166: public transport | I166: WDB9333175L731833 | J166: 917293210 | K166: 2 | L166: 130000 | M166: Mohamed Theeb Ashaq Shaflout CO | N166: 597690078 | O166: Male | P166: Owner | Q166: Saudi | AJ166: =GBHdr!J146 -> 0
A167: 124 | B167: Mercedes-Benz_TRUCK (63-4614) | C167: white | D167: 2013 | E167: G-Truck | F167: 8390 | G167: ا ب و | H167: public transport | I167: WDB9333175L731834 | J167: 876293210 | K167: 2 | L167: 120000 | M167: Mohamed Theeb Ashaq Shaflout CO | N167: 597690078 | O167: Male | P167: Owner | Q167: Saudi | AJ167: =GBHdr!J147 -> 0
A168: 125 | B168: Mercedes-Benz_TRUCK (63-4614) | C168: white | D168: 2013 | E168: G-Truck | F168: 8392 | G168: ا ب و | H168: public transport | I168: WDB9333175L737555 | J168: 885293210 | K168: 2 | L168: 120000 | M168: Mohamed Theeb Ashaq Shaflout CO | N168: 597690078 | O168: Male | P168: Owner | Q168: Saudi | AJ168: =GBHdr!J148 -> 0
A169: 126 | B169: Mercedes-Benz_TRUCK (63-4614) | C169: white | D169: 1994 | E169: G-Truck | F169: 3699 | G169: ا س ي | H169: Private transport | I169: WDB65803315738015 | J169: 324863600 | K169: 2 | L169: 200000 | M169: Mohamed Theeb Ashaq Shaflout CO | N169: 597690078 | O169: Male | P169: Owner | Q169: Saudi | AJ169: =GBHdr!J150 -> 0
A170: 127 | B170: Mercedes-Benz_TRUCK (63-4614) | C170: white | D170: 1990 | E170: G-Truck | F170: 7157 | G170: ا ط ب | H170: Private transport | I170: WDB65903815517984 | J170: 293496900 | K170: 2 | L170: 70000 | M170: Mohamed Theeb Ashaq Shaflout CO | N170: 597690078 | O170: Male | P170: Owner | Q170: Saudi | AJ170: =GBHdr!J151 -> 0
A171: 128 | B171: Yuejin_Diyna (213-4069) | C171: white | D171: 2012 | E171: G-Truck | F171: 4463 | G171: ا هـ هـ | H171: Private transport | I171: LNJAEDA36CK307954 | J171: 679153310 | K171: 2 | L171: 17000 | M171: Mohamed Theeb Ashaq Shaflout CO | N171: 597690078 | O171: Male | P171: Owner | Q171: Saudi | AJ171: =GBHdr!J153 -> 0
A172: 129 | B172: Mercedes-Benz_TRUCK (63-4614) | C172: white | D172: 2015 | E172: G-Truck | F172: 3282 | G172: ب ا ب | H172: Private transport | I172: WDB9301421L867358 | J172: 116023410 | K172: 2 | L172: 200000 | M172: Mohamed Theeb Ashaq Shaflout CO | N172: 597690078 | O172: Male | P172: Owner | Q172: Saudi | AJ172: =GBHdr!J154 -> 0
A173: 130 | B173: Mercedes-Benz_TRUCK (63-4614) | C173: white | D173: 2010 | E173: G-Truck | F173: 8560 | G173: ا ص س | H173: Private transport | I173: WDB9333145L436899 | J173: 648925900 | K173: 2 | L173: 120000 | M173: Mohamed Theeb Ashaq Shaflout CO | N173: 597690078 | O173: Male | P173: Owner | Q173: Saudi | AJ173: =GBHdr!J155 -> 0
A174: 131 | B174: Mercedes-Benz_TRUCK (63-4614) | C174: white | D174: 2010 | E174: G-Truck | F174: 8994 | G174: ا ص س | H174: Private transport | I174: WDB9333145L430875 | J174: 461835900 | K174: 2 | L174: 140000 | M174: Mohamed Theeb Ashaq Shaflout CO | N174: 597690078 | O174: Male | P174: Owner | Q174: Saudi | AJ174: =GBHdr!J156 -> 0
A175: 132 | B175: Mercedes-Benz_TRUCK (63-4614) | C175: white | D175: 2012 | E175: G-Truck | F175: 4216 | G175: ا م ك | H175: Private transport | I175: WDB9333175L651104 | J175: 9918110 | K175: 2 | L175: 220000 | M175: Mohamed Theeb Ashaq Shaflout CO | N175: 597690078 | O175: Male | P175: Owner | Q175: Saudi | AJ175: =GBHdr!J157 -> 0
A176: 133 | B176: Mercedes-Benz_TRUCK (63-4614) | C176: white | D176: 2010 | E176: G-Truck | F176: 8566 | G176: ا ص س | H176: Private transport | I176: WDB9333145L430877 | J176: 839925900 | K176: 2 | L176: 120000 | M176: Mohamed Theeb Ashaq Shaflout CO | N176: 597690078 | O176: Male | P176: Owner | Q176: Saudi | AJ176: =GBHdr!J158 -> 0
A177: 134 | B177: Mercedes-Benz_TRUCK (63-4614) | C177: white | D177: 2010 | E177: G-Truck | F177: 8561 | G177: ا ص س | H177: Private transport | I177: WDB9333145L436930 | J177: 658925900 | K177: 2 | L177: 120000 | M177: Mohamed Theeb Ashaq Shaflout CO | N177: 597690078 | O177: Male | P177: Owner | Q177: Saudi | AJ177: =GBHdr!J159 -> 0
A178: 135 | B178: Mercedes-Benz_TRUCK (63-4614) | C178: white | D178: 2010 | E178: G-Truck | F178: 8562 | G178: ا ص س | H178: Private transport | I178: WDB9333145L436929 | J178: 668925900 | K178: 2 | L178: 100000 | M178: Mohamed Theeb Ashaq Shaflout CO | N178: 597690078 | O178: Male | P178: Owner | Q178: Saudi | AJ178: =GBHdr!J161 -> 0
A179: 136 | B179: Mercedes-Benz_TRUCK (63-4614) | C179: white | D179: 2010 | E179: G-Truck | F179: 8576 | G179: ا ص س | H179: Private transport | I179: WDB9333145L430884 | J179: 249925900 | K179: 2 | L179: 100000 | M179: Mohamed Theeb Ashaq Shaflout CO | N179: 597690078 | O179: Male | P179: Owner | Q179: Saudi | AJ179: =GBHdr!J162 -> 0
A180: 137 | B180: Mercedes-Benz_TRUCK (63-4614) | C180: white | D180: 2010 | E180: G-Truck | F180: 8564 | G180: ا ص س | H180: Private transport | I180: WDB9333145L430886 | J180: 9925900 | K180: 2 | L180: 100000 | M180: Mohamed Theeb Ashaq Shaflout CO | N180: 597690078 | O180: Male | P180: Owner | Q180: Saudi | AJ180: =GBHdr!J163 -> 0
A181: 138 | B181: Mercedes-Benz_TRUCK (63-4614) | C181: white | D181: 2011 | E181: G-Truck | F181: 1667 | G181: ا ك ط | H181: Private transport | I181: WDB9333175L543804 | J181: 338737010 | K181: 2 | L181: 110000 | M181: Mohamed Theeb Ashaq Shaflout CO | N181: 597690078 | O181: Male | P181: Owner | Q181: Saudi | AJ181: =GBHdr!J164 -> 0
A182: 139 | B182: Mercedes-Benz_TRUCK (63-4614) | C182: white | D182: 2011 | E182: G-Truck | F182: 3912 | G182: ا ق د | H182: Private transport | I182: WDB9333145L481641 | J182: 400914010 | K182: 2 | L182: 100000 | M182: Mohamed Theeb Ashaq Shaflout CO | N182: 597690078 | O182: Male | P182: Owner | Q182: Saudi | AJ182: =GBHdr!J165 -> 0
A183: 140 | B183: Mercedes-Benz_TRUCK (63-4614) | C183: white | D183: 2011 | E183: G-Truck | F183: 1656 | G183: ا ك ط | H183: Private transport | I183: WDB9333175L543806 | J183: 496737010 | K183: 2 | L183: 100000 | M183: Mohamed Theeb Ashaq Shaflout CO | N183: 597690078 | O183: Male | P183: Owner | Q183: Saudi | AJ183: =GBHdr!J166 -> 0
A184: 141 | B184: Mercedes-Benz_TRUCK (63-4614) | C184: white | D184: 2011 | E184: G-Truck | F184: 3913 | G184: ا ق د | H184: Private transport | I184: WDB9333145L481640 | J184: 914010 | K184: 2 | L184: 110000 | M184: Mohamed Theeb Ashaq Shaflout CO | N184: 597690078 | O184: Male | P184: Owner | Q184: Saudi | AJ184: =GBHdr!J167 -> 0
A185: 142 | B185: Mercedes-Benz_TRUCK (63-4614) | C185: white | D185: 2011 | E185: G-Truck | F185: 3902 | G185: ا ق د | H185: Private transport | I185: WDB9333145L481638 | J185: 134914010 | K185: 2 | L185: 110000 | M185: Mohamed Theeb Ashaq Shaflout CO | N185: 597690078 | O185: Male | P185: Owner | Q185: Saudi | AJ185: =GBHdr!J168 -> 0
A186: 143 | B186: Mercedes-Benz_TRUCK (63-4614) | C186: white | D186: 2011 | E186: G-Truck | F186: 3911 | G186: ا ق د | H186: Private transport | I186: WDB9333145L481642 | J186: 733224010 | K186: 2 | L186: 100000 | M186: Mohamed Theeb Ashaq Shaflout CO | N186: 597690078 | O186: Male | P186: Owner | Q186: Saudi | AJ186: =GBHdr!J169 -> 0
A187: 144 | B187: Mercedes-Benz_TRUCK (63-4614) | C187: white | D187: 2011 | E187: G-Truck | F187: 1662 | G187: ا ك ط | H187: Private transport | I187: WDB9333175L543785 | J187: 567737010 | K187: 2 | L187: 100000 | M187: Mohamed Theeb Ashaq Shaflout CO | N187: 597690078 | O187: Male | P187: Owner | Q187: Saudi | AJ187: =GBHdr!J170 -> 0
A188: 145 | B188: Mercedes-Benz_TRUCK (63-4614) | C188: white | D188: 2008 | E188: G-Truck | F188: 3021 | G188: ا ع ي | H188: Private transport | I188: NMB94216212072320 | J188: 286050010 | K188: 2 | L188: 150000 | M188: Mohamed Theeb Ashaq Shaflout CO | N188: 597690078 | O188: Male | P188: Owner | Q188: Saudi | AJ188: =GBHdr!J171 -> 0
A189: 146 | B189: Mercedes-Benz_TRUCK (63-4614) | C189: white | D189: 2011 | E189: G-Truck | F189: 1664 | G189: ا ك ط | H189: Private transport | I189: WDB9333175L543786 | J189: 57737010 | K189: 2 | L189: 100000 | M189: Mohamed Theeb Ashaq Shaflout CO | N189: 597690078 | O189: Male | P189: Owner | Q189: Saudi | AJ189: =GBHdr!J172 -> 0
A190: 147 | B190: Mercedes-Benz_TRUCK (63-4614) | C190: white | D190: 2011 | E190: G-Truck | F190: 1648 | G190: ا ك ط | H190: Private transport | I190: WDB9333175L543805 | J190: 384737010 | K190: 2 | L190: 100000 | M190: Mohamed Theeb Ashaq Shaflout CO | N190: 597690078 | O190: Male | P190: Owner | Q190: Saudi | AJ190: =GBHdr!J173 -> 0
A191: 148 | B191: Mercedes-Benz_TRUCK (63-4614) | C191: white | D191: 2007 | E191: G-Truck | F191: 8560 | G191: ب ح ق | H191: Private transport | I191: WDB9340321L188141 | J191: 578368510 | K191: 2 | L191: 110000 | M191: Mohamed Theeb Ashaq Shaflout CO | N191: 597690078 | O191: Male | P191: Owner | Q191: Saudi | AJ191: =GBHdr!J174 -> 0
A192: 149 | B192: Mercedes-Benz_TRUCK (63-4614) | C192: white | D192: 2015 | E192: G-Truck | F192: 7254 | G192: ب ح ص | H192: Private transport | I192: WDB9333171L952679 | J192: 224328510 | K192: 2 | L192: 130000 | M192: Mohamed Theeb Ashaq Shaflout CO | N192: 597690078 | O192: Male | P192: Owner | Q192: Saudi | AJ192: =GBHdr!J175 -> 0
A193: 150 | B193: Mercedes-Benz_TRUCK (63-4614) | C193: white | D193: 2015 | E193: G-Truck | F193: 7257 | G193: ب ح ص | H193: Private transport | I193: WDB9333171L953567 | J193: 234328510 | K193: 2 | L193: 130000 | M193: Mohamed Theeb Ashaq Shaflout CO | N193: 597690078 | O193: Male | P193: Owner | Q193: Saudi | AJ193: =GBHdr!J176 -> 0
A194: 151 | B194: Mercedes-Benz_TRUCK (63-4614) | C194: white | D194: 2015 | E194: G-Truck | F194: 7253 | G194: ب ح ص | H194: Private transport | I194: WDB9333171L952677 | J194: 4328510 | K194: 2 | L194: 130000 | M194: Mohamed Theeb Ashaq Shaflout CO | N194: 597690078 | O194: Male | P194: Owner | Q194: Saudi | AJ194: =GBHdr!J177 -> 0
A195: 152 | B195: Mercedes-Benz_TRUCK (63-4614) | C195: white | D195: 2015 | E195: G-Truck | F195: 7256 | G195: ب ح ص | H195: Private transport | I195: WDB9333171L953001 | J195: 524328510 | K195: 2 | L195: 130000 | M195: Mohamed Theeb Ashaq Shaflout CO | N195: 597690078 | O195: Male | P195: Owner | Q195: Saudi | AJ195: =GBHdr!J178 -> 0
A196: 153 | B196: Mercedes-Benz_TRUCK (63-4614) | C196: white | D196: 2015 | E196: G-Truck | F196: 7258 | G196: ب ح ص | H196: Private transport | I196: WDB9333171L953993 | J196: 83328510 | K196: 2 | L196: 130000 | M196: Mohamed Theeb Ashaq Shaflout CO | N196: 597690078 | O196: Male | P196: Owner | Q196: Saudi | AJ196: =GBHdr!J179 -> 0
A197: 154 | B197: Mercedes-Benz_TRUCK (63-4614) | C197: white | D197: 2007 | E197: G-Truck | F197: 8470 | G197: ب ح ق | H197: Private transport | I197: WDB9340321L203156 | J197: 812468510 | K197: 2 | L197: 70000 | M197: Mohamed Theeb Ashaq Shaflout CO | N197: 597690078 | O197: Male | P197: Owner | Q197: Saudi | AJ197: =GBHdr!J180 -> 0
A198: 155 | B198: Mercedes-Benz_TRUCK (63-4614) | C198: white | D198: 2007 | E198: G-Truck | F198: 8515 | G198: ب ح ق | H198: Private transport | I198: WDB9340321L159564 | J198: 268368510 | K198: 2 | L198: 70000 | M198: Mohamed Theeb Ashaq Shaflout CO | N198: 597690078 | O198: Male | P198: Owner | Q198: Saudi | AJ198: =GBHdr!J181 -> 0
A199: 156 | B199: Hyundai_Elantra (130-3529) | C199: white | D199: 2016 | E199: A-Sedan | F199: 3495 | G199: ح ق ق | H199: Special | I199: KMHDG41F5GU538795 | J199: 338186410 | K199: 2 | L199: 20000 | M199: Mohamed Theeb Ashaq Shaflout CO | N199: 597690078 | O199: Male | P199: Owner | Q199: Saudi | AJ199: =GBHdr!J182 -> 0
A200: 157 | B200: Hyundai_Tucson (130-2507) | C200: white | D200: 2015 | E200: A-Sedan | F200: 3497 | G200: ح ق ق | H200: Special | I200: KMHJT81E3FU040154 | J200: 929186410 | K200: 2 | L200: 18000 | M200: Mohamed Theeb Ashaq Shaflout CO | N200: 597690078 | O200: Male | P200: Owner | Q200: Saudi | AJ200: =GBHdr!J183 -> 0
... 787 more rows

Sheet Sheet1
B1: رقم اللوحة | C1: نوع تسجيل اللوحة | D1: صانع المركبة | E1: طراز المركبة | F1: سنة الصنع | G1: الرقم التسلسلي | H1: رقم الهيكل | I1: لون المركبه | J1: بطاقة تشغيل | K1: تاريخ انتهاء استمارة | L1: عدد ايام الانتهاء | M1: تاريخ انتهاء التامين | N1: تاريخ انتهاء الفحص
B2: ح ق ق3495 | C2: خصوصي | D2: هونداي | E2: النترا | F2: 2016 | G2: 338186410 | H2: KMHDG41FSGU538795 | I2: ابيض | J2: بدون | K2: 2024-06-10 | L2: =DAYS360($O$1,K2) -> 44800 | M2: 2022-02-06 | N2: 15/01/1444 | O2: =VLOOKUP(G2,Sheet2!A:C,2,0) -> 3495
B3: ب ر ك 7056 | C3: نقل خاص | D3: ايسوزو | E3: بكب غمارة | F3: 2019 | G3: 869133710 | H3: MPAEL3918KT010357 | I3: ابيض | J3: بدون | K3: 2022-08-01 | L3: 44131 | M3: 2022-02-06 | N3: 10/04/1444 | O3: =VLOOKUP(G3,Sheet2!A:C,2,0) -> 7056
B4: ب ر ك 7057 | C4: نقل خاص | D4: ايسوزو | E4: بكب غمارة | F4: 2019 | G4: 889133710 | H4: MPAEL3918KT010360 | I4: ابيض | J4: بدون | K4: 2022-08-01 | L4: 44131 | M4: 2022-02-06 | N4: 09/04/1444 | O4: =VLOOKUP(G4,Sheet2!A:C,2,0) -> 7057
B5: ا ك ل 1259 | C5: خصوصي | D5: ايسوزو | E5: بكب غمارتين | F5: 2020 | G5: 299419710 | H5: MPAER331XLT014158 | I5: ابيض | J5: بدون | K5: 2023-06-03 | L5: 44433 | M5: 2022-02-06 | N5: 14/10/1443 | O5: =VLOOKUP(G5,Sheet2!A:C,2,0) -> 1259
B6: ب ر د 7037 | C6: نقل خاص | D6: ايسوزو | E6: بكب غمارتين | F6: 2020 | G6: 897365710 | H6: MPAEL3318LT001863 | I6: ابيض | J6: بدون | K6: 2022-11-22 | L6: 44242 | M6: 2022-02-06 | N6: 01/02/1444 | O6: =VLOOKUP(G6,Sheet2!A:C,2,0) -> 7037
B7: د رع 3954 | C7: خصوصي | D7: هونداي | E7: توسان | F7: 2019 | G7: 130952710 | H7: TMAJ28113KJ806467 | I7: رصاصي | J7: بدون | K7: 2022-06-14 | L7: 44084 | M7: 2022-02-06 | N7: 21/03/1444 | O7: =VLOOKUP(G7,Sheet2!A:C,2,0) -> 3954
B8: د ن ك 9667 | C8: خصوصي | D8: ايسوزو | E8: جيب | F8: 2020 | G8: 494370810 | H8: MPAER88T1LT013438 | I8: ابيض | J8: بدون | K8: 2023-10-08 | L8: 44558 | M8: 2022-02-06 | N8: 24/01/1444 | O8: =VLOOKUP(G8,Sheet2!A:C,2,0) -> 9667
B9: د ك ه 8827 | C9: خصوصي | D9: تويوتا | E9: فورشنر | F9: 2020 | G9: 460756710 | H9: MHFDB8FS7L0026123 | I9: رصاصي | J9: بدون | K9: 2023-01-09 | L9: 44289 | M9: 2022-02-06 | O9: =VLOOKUP(G9,Sheet2!A:C,2,0) -> 8827
B10: د ن ع 5181 | C10: خصوصي | D10: تويوتا | E10: فورشنر | F10: 2021 | G10: 176570810 | H10: MHFDB8FS3M0027898 | I10: فضي | J10: بدون | K10: 2023-10-09 | L10: 44559 | M10: 2022-02-06 | O10: =VLOOKUP(G10,Sheet2!A:C,2,0) -> 5181
B11: ب س ر 2306 | C11: نقل خاص | D11: ايسوزو | E11: غمارتين | F11: 2020 | G11: 667491810 | H11: MPAER33T7LT017181 | I11: ابيض | J11: بدون | K11: 2024-01-18 | L11: 44658 | M11: 2022-02-06 | N11: 25/01/1444 | O11: =VLOOKUP(G11,Sheet2!A:C,2,0) -> 2306
A12: 7753 | B12: ب س ط | C12: نقل خاص | D12: ايسوزو | E12: غمارتين | F12: 2021 | G12: 47592810 | H12: MPAER331XLT021319 | I12: ابيض | J12: بدون | K12: 2024-02-14 | L12: 44684 | M12: 2022-02-06 | O12: =VLOOKUP(G12,Sheet2!A:C,2,0) -> 
B13: ب ر ه 3611 | C13: ايسوزو | D13: ايسوزو | E13: غمارتين | F13: 2020 | G13: 983966710 | H13: MPAER3317LT007880 | I13: ابيض | J13: بدون | K13: 2023-01-15 | L13: 44295 | M13: 2022-02-06 | N13: 14/10/1443 | O13: =VLOOKUP(G13,Sheet2!A:C,2,0) -> 3611
B14: ا ب و 8387 | C14: نقل عام | D14: مرسيدس | E14: خلاطة | F14: 2013 | G14: 996293210 | H14: WDB9333175L731836 | I14: ابيض | J14: 01/02/1444 | K14: 2024-12-26 | L14: 44996 | M14: 2022-02-06 | N14: 24/05/1444 | O14: =VLOOKUP(G14,Sheet2!A:C,2,0) -> 8387
B15: ا ب و 8391 | C15: نقل عام | D15: مرسيدس | E15: خلاطة | F15: 2013 | G15: 946293210 | H15: WDB9333175L731837 | I15: ابيض | J15: 24/06/1444 | K15: 2024-12-26 | L15: 44996 | M15: 2022-02-06 | N15: 24/05/1444 | O15: =VLOOKUP(G15,Sheet2!A:C,2,0) -> 8391
B16: ا ب و 8392 | C16: نقل عام | D16: مرسيدس | E16: خلاطة | F16: 2013 | G16: 885293210 | H16: WDB9333175L737555 | I16: ابيض | J16: 01/02/1444 | K16: 2024-12-26 | L16: 44996 | M16: 2022-02-06 | N16: 06/03/1444 | O16: =VLOOKUP(G16,Sheet2!A:C,2,0) -> 8392
B17: أ ب و 8386 | C17: نقل عام | D17: مرسيدس | E17: خلاطة | F17: 2013 | G17: 96293210 | H17: WDB9333175L731835 | I17: ابيض | J17: 01/02/1444 | K17: 2024-12-26 | L17: 44996 | M17: 2022-02-06 | N17: 28/01/1444 | O17: =VLOOKUP(G17,Sheet2!A:C,2,0) -> 8386
B18: أ ب و 8389 | C18: نقل عام | D18: مرسيدس | E18: خلاطة | F18: 2013 | G18: 917293210 | H18: WDB9333175L731833 | I18: ابيض | J18: 01/02/1444 | K18: 2024-12-26 | L18: 44996 | M18: 2022-02-06 | N18: 28/01/1444 | O18: =VLOOKUP(G18,Sheet2!A:C,2,0) -> 8389
B19: أ ب و 8390 | C19: نقل عام | D19: مرسيدس | E19: خلاطة | F19: 2013 | G19: 876293210 | H19: WDB9333175L731834 | I19: ابيض | J19: 01/02/1444 | K19: 2024-12-26 | L19: 44996 | M19: 2022-02-06 | N19: 25/05/1444 | O19: =VLOOKUP(G19,Sheet2!A:C,2,0) -> 8390
B20: أ ص س 8559 | C20: نقل خاص | D20: مرسيدس | E20: خلاطة | F20: 2010 | G20: 988925900 | H20: WDB9333145L436900 | I20: ابيض | J20: 21/09/1443 | K20: 2024-04-01 | L20: 44731 | M20: 2022-02-06 | N20: 29/06/1443 | O20: =VLOOKUP(G20,Sheet2!A:C,2,0) -> 8559
B21: أ ص س 8560 | C21: نقل خاص | D21: مرسيدس | E21: خلاطة | F21: 2010 | G21: 648925900 | H21: WDB9333145L436899 | I21: ابيض | J21: 21/09/1443 | K21: 2024-04-01 | L21: 44731 | M21: 2022-02-06 | N21: 20/03/1444 | O21: =VLOOKUP(G21,Sheet2!A:C,2,0) -> 8560
B22: أ ص س 8561 | C22: نقل خاص | D22: مرسيدس | E22: خلاطة | F22: 2010 | G22: 658925900 | H22: WDB9333145L436930 | I22: ابيض | J22: 21/09/1443 | K22: 2024-04-01 | L22: 44731 | M22: 2022-02-06 | N22: 06/04/1444 | O22: =VLOOKUP(G22,Sheet2!A:C,2,0) -> 8561
B23: أ ص س 8562 | C23: نقل خاص | D23: مرسيدس | E23: خلاطة | F23: 2010 | G23: 668925900 | H23: WDB9333145L436929 | I23: ابيض | J23: 21/09/1443 | K23: 2024-04-01 | L23: 44731 | M23: 2022-02-06 | N23: 23/02/1444 | O23: =VLOOKUP(G23,Sheet2!A:C,2,0) -> 8562
B24: أ ص س 8564 | C24: نقل خاص | D24: مرسيدس | E24: خلاطة | F24: 2010 | G24: 9925900 | H24: WDB9333145L430886 | I24: ابيض | J24: 19/10/1443 | K24: 2024-04-01 | L24: 44731 | M24: 2022-02-06 | N24: 09/04/1444 | O24: =VLOOKUP(G24,Sheet2!A:C,2,0) -> 8564
B25: أ ص س 8566 | C25: نقل خاص | D25: مرسيدس | E25: خلاطة | F25: 2010 | G25: 839925900 | H25: WDB9333145L430877 | I25: ابيض | J25: 13/06/1444 | K25: 2024-04-01 | L25: 44731 | M25: 2022-02-06 | N25: 02/04/1444 | O25: =VLOOKUP(G25,Sheet2!A:C,2,0) -> 8566
B26: أ ص س 8576 | C26: نقل خاص | D26: مرسيدس | E26: خلاطة | F26: 2010 | G26: 249925900 | H26: WDB9333145L430884 | I26: ابيض | J26: 21/09/1443 | K26: 2024-04-01 | L26: 44731 | M26: 2022-02-06 | N26: 06/03/1444 | O26: =VLOOKUP(G26,Sheet2!A:C,2,0) -> 8576
B27: أ ص س 8994 | C27: نقل خاص | D27: مرسيدس | E27: خلاطة | F27: 2010 | G27: 461835900 | H27: WDB9333145L430875 | I27: ابيض | J27: 23/09/1443 | K27: 2024-04-03 | L27: 44733 | M27: 2022-02-06 | N27: 28/01/1444 | O27: =VLOOKUP(G27,Sheet2!A:C,2,0) -> 8994
B28: أ ق د 3902 | C28: نقل خاص | D28: مرسيدس | E28: خلاطة | F28: 2011 | G28: 134914010 | H28: WDB9333145L481638 | I28: ابيض | J28: 01/02/1444 | K28: 2022-09-04 | L28: 44164 | M28: 2022-02-06 | N28: 12/03/1444 | O28: =VLOOKUP(G28,Sheet2!A:C,2,0) -> 3902
B29: أ ق د 3911 | C29: نقل خاص | D29: مرسيدس | E29: خلاطة | F29: 2011 | G29: 733224010 | H29: WDB9333145L481642 | I29: ابيض | J29: 01/02/1444 | K29: 2022-09-07 | L29: 44167 | M29: 2022-02-06 | N29: 01/02/1444 | O29: =VLOOKUP(G29,Sheet2!A:C,2,0) -> 3911
B30: أ ق د 3912 | C30: نقل خاص | D30: مرسيدس | E30: خلاطة | F30: 2011 | G30: 400914010 | H30: WDB9333145L481641 | I30: ابيض | J30: 01/02/1444 | K30: 2022-09-04 | L30: 44164 | M30: 2022-02-06 | N30: 25/01/1444 | O30: =VLOOKUP(G30,Sheet2!A:C,2,0) -> 3912
B31: أ ق د 3913 | C31: نقل خاص | D31: مرسيدس | E31: خلاطة | F31: 2011 | G31: 914010 | H31: WDB9333145L481640 | I31: ابيض | J31: 18/03/1444 | K31: 2022-09-04 | L31: 44164 | M31: 2022-02-06 | N31: 06/04/1444 | O31: =VLOOKUP(G31,Sheet2!A:C,2,0) -> 3913
B32: أ ك ط 1648 | C32: نقل خاص | D32: مرسيدس | E32: خلاطة | F32: 2011 | G32: 384737010 | H32: WDB9333175L543805 | I32: ابيض | J32: 27/10/1443 | K32: 2023-01-27 | L32: 44307 | M32: 2022-02-06 | N32: 11/04/1444 | O32: =VLOOKUP(G32,Sheet2!A:C,2,0) -> 1648
B33: أ ك ط 1656 | C33: نقل خاص | D33: مرسيدس | E33: خلاطة | F33: 2011 | G33: 496737010 | H33: WDB9333175L543806 | I33: ابيض | J33: 27/10/1443 | K33: 2023-01-27 | L33: 44307 | M33: 2022-02-06 | N33: 25/01/1444 | O33: =VLOOKUP(G33,Sheet2!A:C,2,0) -> 1656
B34: أ ك ط 1662 | C34: نقل خاص | D34: مرسيدس | E34: خلاطة | F34: 2011 | G34: 567737010 | H34: WDB9333175L543785 | I34: ابيض | J34: 27/10/1443 | K34: 2023-01-27 | L34: =DAYS360($O$1,K34) -> 44307 | M34: 2022-02-06 | N34: 25/05/1444 | O34: =VLOOKUP(G34,Sheet2!A:C,2,0) -> 1662
B35: أ ك ط 1664 | C35: نقل خاص | D35: مرسيدس | E35: خلاطة | F35: 2011 | G35: 57737010 | H35: WDB9333175L543786 | I35: ابيض | J35: 27/10/1443 | K35: 2023-01-27 | L35: 44307 | M35: 2022-02-06 | N35: 29/01/1444 | O35: =VLOOKUP(G35,Sheet2!A:C,2,0) -> 1664
B36: أ ك ط 1667 | C36: نقل خاص | D36: مرسيدس | E36: خلاطة | F36: 2011 | G36: 338737010 | H36: WDB9333175L543804 | I36: ابيض | J36: 27/10/1443 | K36: 2023-01-27 | L36: 44307 | M36: 2022-02-06 | N36: 29/01/1444 | O36: =VLOOKUP(G36,Sheet2!A:C,2,0) -> 1667
B37: أ ن د 7929 | C37: نقل خاص | D37: مرسيدس | E37: خلاطة | F37: 2007 | G37: 661942210 | H37: WDB9333171L244383 | I37: ابيض | J37: 19/10/1443 | K37: 2024-11-02 | L37: 44942 | M37: 2022-02-06 | N37: 19/04/1444 | O37: =VLOOKUP(G37,Sheet2!A:C,2,0) -> 7929
B38: ب ح ص 7253 | C38: نقل خاص | D38: مرسيدس | E38: خلاطة | F38: 2015 | G38: 4328510 | H38: WDB9333171L952677 | I38: ابيض | J38: 09/11/1443 | K38: 2022-12-03 | L38: 44253 | M38: 2022-02-06 | N38: 24/05/1444 | O38: =VLOOKUP(G38,Sheet2!A:C,2,0) -> 7253
B39: ب ح ص 7254 | C39: نقل خاص | D39: مرسيدس | E39: خلاطة | F39: 2015 | G39: 224328510 | H39: WDB9333171L952679 | I39: ابيض | J39: 09/11/1443 | K39: 2022-12-03 | L39: 44253 | M39: 2022-02-06 | N39: 20/04/1444 | O39: =VLOOKUP(G39,Sheet2!A:C,2,0) -> 7254
B40: ب ح ص 7256 | C40: نقل خاص | D40: مرسيدس | E40: خلاطة | F40: 2015 | G40: 524328510 | H40: WDB9333171L953001 | I40: ابيض | J40: 28/07/1443 | K40: 2022-12-03 | L40: 44253 | M40: 2022-02-06 | N40: 10/05/1443 | O40: =VLOOKUP(G40,Sheet2!A:C,2,0) -> 7256
B41: ب ح ص 7257 | C41: نقل خاص | D41: مرسيدس | E41: خلاطة | F41: 2015 | G41: 234328510 | H41: WDB9333171L953567 | I41: ابيض | J41: 28/07/1443 | K41: 2022-12-03 | L41: 44253 | M41: 2022-02-06 | N41: 01/05/1444 | O41: =VLOOKUP(G41,Sheet2!A:C,2,0) -> 7257
B42: ب ح ص 7258 | C42: نقل خاص | D42: مرسيدس | E42: خلاطة | F42: 2015 | G42: 83328510 | H42: WDB9333171L953993 | I42: ابيض | J42: 28/07/1443 | K42: 2022-12-03 | L42: 44253 | M42: 2022-02-06 | N42: 05/05/1444 | O42: =VLOOKUP(G42,Sheet2!A:C,2,0) -> 7258
B43: ب د ي 8949 | C43: نقل خاص | D43: مرسيدس | E43: خلاطة | F43: 2017 | G43: 215087710 | H43: NMB96433112178728 | I43: ابيض | J43: 25/12/1443 | K43: 2023-04-16 | L43: 44386 | M43: 2022-02-06 | N43: 25/12/1443 | O43: =VLOOKUP(G43,Sheet2!A:C,2,0) -> 8949
B44: ب د ي 8950 | C44: نقل خاص | D44: مرسيدس | E44: خلاطة | F44: 2017 | G44: 315087710 | H44: NMB96433112179128 | I44: ابيض | J44: 30/11/1443 | K44: 2023-04-16 | L44: 44386 | M44: 2022-02-06 | N44: 10/11/1443 | O44: =VLOOKUP(G44,Sheet2!A:C,2,0) -> 8950
B45: ب د ي 8951 | C45: نقل خاص | D45: مرسيدس | E45: خلاطة | F45: 2017 | G45: 615087710 | H45: NMB96433112178781 | I45: ابيض | J45: 30/11/1443 | K45: 2023-04-16 | L45: 44386 | M45: 2022-02-06 | N45: 10/11/1443 | O45: =VLOOKUP(G45,Sheet2!A:C,2,0) -> 8951
B46: ب د ي 8952 | C46: نقل خاص | D46: مرسيدس | E46: خلاطة | F46: 2017 | G46: 815087710 | H46: NMB96433112178929 | I46: ابيض | J46: 29/11/1443 | K46: 2023-04-16 | L46: 44386 | M46: 2022-02-06 | N46: 12/11/1443 | O46: =VLOOKUP(G46,Sheet2!A:C,2,0) -> 8952
B47: ب د ي 8953 | C47: نقل خاص | D47: مرسيدس | E47: خلاطة | F47: 2017 | G47: 925087710 | H47: NMB96433112178975 | I47: ابيض | J47: 28/11/1443 | K47: 2023-04-16 | L47: 44386 | M47: 2022-02-06 | N47: 10/11/1443 | O47: =VLOOKUP(G47,Sheet2!A:C,2,0) -> 8953
B48: ب د ي 8954 | C48: نقل خاص | D48: مرسيدس | E48: خلاطة | F48: 2017 | G48: 735087710 | H48: NMB96433112178185 | I48: ابيض | J48: 28/11/1443 | K48: 2023-04-16 | L48: 44386 | M48: 2022-02-06 | N48: 11/11/1443 | O48: =VLOOKUP(G48,Sheet2!A:C,2,0) -> 8954
B49: ب د ي 8955 | C49: نقل خاص | D49: مرسيدس | E49: خلاطة | F49: 2017 | G49: 936087710 | H49: NMB96433112179022 | I49: ابيض | J49: 23/01/1444 | K49: 2023-04-16 | L49: 44386 | M49: 2022-02-06 | N49: 10/11/1443 | O49: =VLOOKUP(G49,Sheet2!A:C,2,0) -> 8955
A50: 3072 | B50: أ ر ق | C50: نقل عام | D50: مرسيدس | E50: خلاطة | F50: 2021 | G50: 550383810 | H50: W1T96433110475620 | I50: ابيض | J50: 01/02/1444 | K50: 2024-03-30 | L50: 44730 | M50: 2022-02-06 | O50: =VLOOKUP(G50,Sheet2!A:C,2,0) -> 
A51: 3073 | B51: أ ر ق | C51: نقل عام | D51: مرسيدس | E51: خلاطة | F51: 2021 | G51: 840383810 | H51: W1T96433110486535 | I51: ابيض | J51: 01/02/1444 | K51: 2024-03-30 | L51: 44730 | M51: 2022-02-06 | O51: =VLOOKUP(G51,Sheet2!A:C,2,0) -> 
A52: 3074 | B52: أ ر ق | C52: نقل عام | D52: مرسيدس | E52: خلاطة | F52: 2021 | G52: 630383810 | H52: W1T96433110484356 | I52: ابيض | J52: 01/02/1444 | K52: 2024-03-30 | L52: 44730 | M52: 2022-02-06 | O52: =VLOOKUP(G52,Sheet2!A:C,2,0) -> 
A53: 3075 | B53: أ ر ق | C53: نقل عام | D53: مرسيدس | E53: خلاطة | F53: 2021 | G53: 910383810 | H53: W1T96433110486534 | I53: ابيض | J53: 01/02/1444 | K53: 2024-03-30 | L53: 44730 | M53: 2022-02-06 | O53: =VLOOKUP(G53,Sheet2!A:C,2,0) -> 
A54: 3076 | B54: أ ر ق | C54: نقل عام | D54: مرسيدس | E54: خلاطة | F54: 2021 | G54: 110383810 | H54: W1T96433110486533 | I54: ابيض | J54: 01/02/1444 | K54: 2024-03-30 | L54: 44730 | M54: 2022-02-06 | O54: =VLOOKUP(G54,Sheet2!A:C,2,0) -> 
A55: 3077 | B55: أ ر ق | C55: نقل عام | D55: مرسيدس | E55: خلاطة | F55: 2021 | G55: 579283810 | H55: W1T96433110482891 | I55: ابيض | J55: 01/02/1444 | K55: 2024-03-30 | L55: 44730 | M55: 2022-02-06 | O55: =VLOOKUP(G55,Sheet2!A:C,2,0) -> 
A56: 2351 | B56: ا ر ق | C56: نقل عام | D56: مرسيدس | E56: خلاطة | F56: 2021 | G56: 708875810 | H56: W1FNHMAJ4M0525781 | I56: ابيض | K56: 2024-07-13 | L56: 44833 | M56: 2022-02-06 | O56: =VLOOKUP(G56,Sheet2!A:C,2,0) -> 
A57: 2352 | B57: ا ر ق | C57: نقل عام | D57: مرسيدس | E57: خلاطة | F57: 2021 | G57: 308875810 | H57: W1FNHMAJ2M0525780 | I57: ابيض | J57: 02/06/1444 | K57: 2024-07-13 | L57: 44833 | M57: 2022-02-06 | O57: =VLOOKUP(G57,Sheet2!A:C,2,0) -> 
A58: 2353 | B58: ا ر ق | C58: نقل عام | D58: مرسيدس | E58: خلاطة | F58: 2021 | G58: 8875810 | H58: W1FNHMAJ4M0525778 | I58: ابيض | J58: 24/06/1444 | K58: 2024-07-13 | L58: 44833 | M58: 2022-02-06 | O58: =VLOOKUP(G58,Sheet2!A:C,2,0) -> 
A59: 2354 | B59: ا ر ق | C59: نقل عام | D59: مرسيدس | E59: خلاطة | F59: 2021 | G59: 597875810 | H59: W1FNHMAJ2M0525777 | I59: ابيض | K59: 2024-07-13 | L59: 44833 | M59: 2022-02-06 | O59: =VLOOKUP(G59,Sheet2!A:C,2,0) -> 
A60: 2355 | B60: ا ر ق | C60: نقل عام | D60: مرسيدس | E60: خلاطة | F60: 2021 | G60: 397875810 | H60: W1FNHMAJ6M0525779 | I60: ابيض | J60: 30/05/1444 | K60: 2024-07-13 | L60: 44833 | M60: 2022-02-06 | O60: =VLOOKUP(G60,Sheet2!A:C,2,0) -> 
A61: 2433 | B61: ا ر ق | C61: نقل عام | D61: مرسيدس | E61: خلاطة | F61: 2021 | G61: 981095810 | H61: W1FNHMAJXM0525784 | I61: ابيض | J61: 02/06/1444 | K61: 2024-07-17 | L61: 44837 | M61: 2022-02-06 | O61: =VLOOKUP(G61,Sheet2!A:C,2,0) -> 
A62: 2434 | B62: ا ر ق | C62: نقل عام | D62: مرسيدس | E62: خلاطة | F62: 2021 | G62: 971095810 | H62: W1FNHMAJ9M0525775 | I62: ابيض | J62: 30/05/1444 | K62: 2024-07-17 | L62: 44837 | M62: 2022-02-06 | O62: =VLOOKUP(G62,Sheet2!A:C,2,0) -> 
A63: 2435 | B63: ا ر ق | C63: نقل عام | D63: مرسيدس | E63: خلاطة | F63: 2021 | G63: 991095810 | H63: W1FNHMAJ6M0525782 | I63: ابيض | J63: 05/06/1444 | K63: 2024-07-17 | L63: 44837 | M63: 2022-02-06 | O63: =VLOOKUP(G63,Sheet2!A:C,2,0) -> 
A64: 9766 | B64: أ ر ل | C64: نقل عام | D64: مرسيدس | E64: خلاطة | F64: 2021 | G64: 956268810 | H64: W1T96433010528820 | I64: ابيض | K64: 2024-12-02 | L64: 44972 | M64: 2022-02-06 | O64: =VLOOKUP(G64,Sheet2!A:C,2,0) -> 
A65: 9989 | B65: أ ر ل | C65: نقل عام | D65: مرسيدس | E65: خلاطة | F65: 2021 | G65: 286268810 | H65: W1T96433010528431 | I65: ابيض | K65: 2024-12-02 | L65: 44972 | M65: 2022-02-06 | O65: =VLOOKUP(G65,Sheet2!A:C,2,0) -> 
B66: ا ه ه 4463 | C66: نقل خاص | D66: يوجين | E66: دينا | F66: 2012 | G66: 679153310 | H66: LNJAEDA36CK307954 | I66: ابيض | J66: بدون | K66: 2020-03-10 | L66: =DAYS360($O$1,K66) -> 43270 | M66: 2022-02-06 | N66: 13/10/1441 | O66: =VLOOKUP(G66,Sheet2!A:C,2,0) -> 4463
B67: ا ر ط 6441 | C67: نقل عام | D67: مرسيدس | E67: راس تريلا | F67: 2013 | G67: 648202810 | H67: WDB9634031L747676 | I67: ابيض | J67: 01/02/1444 | K67: 2023-12-25 | L67: 44635 | M67: 2022-02-06 | N67: 24/01/1444 | O67: =VLOOKUP(G67,Sheet2!A:C,2,0) -> 6441
B68: ا ر د 7599 | C68: نقل عام | D68: مرسيدس | E68: رأس تريلا | F68: 2010 | G68: 762069610 | H68: WDB9340321L456654 | I68: اخضر | J68: 01/02/1444 | K68: 2021-12-11 | L68: 43901 | M68: 2022-02-06 | N68: 18/04/1443 | O68: =VLOOKUP(G68,Sheet2!A:C,2,0) -> 7599
B69: ا ر ص 9835 | C69: نقل عام | D69: مرسيدس | E69: رأس تريلا | F69: 2014 | G69: 328994710 | H69: WDB9340421L790819 | I69: ابيض | J69: 01/02/1444 | K69: 2022-10-23 | L69: 44213 | M69: 2022-02-06 | N69: 28/02/1444 | O69: =VLOOKUP(G69,Sheet2!A:C,2,0) -> 9835
B70: ا ر ص 9836 | C70: نقل عام | D70: مرسيدس | E70: رأس تريلا | F70: 2011 | G70: 418994710 | H70: WDB9340321L564097 | I70: ازرق | J70: 01/02/1444 | K70: 2022-10-23 | L70: 44213 | M70: 2022-02-06 | N70: 26/02/1444 | O70: =VLOOKUP(G70,Sheet2!A:C,2,0) -> 9836
B71: ا ر ص 9843 | C71: نقل عام | D71: مرسيدس | E71: رأس تريلا | F71: 2009 | G71: 564365710 | H71: WDB9340321L427585 | I71: اخضر / ازرق | J71: 01/02/1444 | K71: 2022-11-22 | L71: 44242 | M71: 2022-02-06 | N71: 22/04/1444 | O71: =VLOOKUP(G71,Sheet2!A:C,2,0) -> 9843
B72: أ ر ص 9842 | C72: نقل عام | D72: مرسيدس | E72: رأس تريلا | F72: 2010 | G72: 944365710 | H72: WDB9340321L475537 | I72: ابيض | J72: 01/02/1444 | K72: 2022-11-22 | L72: 44242 | M72: 2022-02-06 | N72: 03/05/1444 | O72: =VLOOKUP(G72,Sheet2!A:C,2,0) -> 9842
B73: أ م ق 7969 | C73: نقل خاص | D73: مرسيدس | E73: رأس تريلا | F73: 2008 | G73: 688642210 | H73: WDB9340321L308005 | I73: احمر | J73: 13/06/1444 | K73: 2024-11-01 | L73: 44941 | M73: 2022-02-06 | N73: 28/02/1444 | O73: =VLOOKUP(G73,Sheet2!A:C,2,0) -> 7969
B74: ب ا د 6554 | C74: نقل خاص | D74: مرسيدس | E74: رأس تريلا | F74: 2007 | G74: 979874410 | H74: WDB9340321L206341 | I74: ابيض | J74: 28/07/1443 | K74: 2024-03-29 | L74: 44729 | M74: 2022-02-06 | O74: =VLOOKUP(G74,Sheet2!A:C,2,0) -> 6554
B75: ب ح ق 8470 | C75: نقل خاص | D75: مرسيدس | E75: رأس تريلا | F75: 2007 | G75: 812468510 | H75: WDB9340321L203156 | I75: ابيض | J75: 26/10/1443 | K75: 2022-12-25 | L75: 44275 | M75: 2022-02-06 | N75: 27/03/1444 | O75: =VLOOKUP(G75,Sheet2!A:C,2,0) -> 8470
B76: ب ح ق 8515 | C76: نقل خاص | D76: مرسيدس | E76: رأس تريلا | F76: 2007 | G76: 268368510 | H76: WDB9340321L159564 | I76: ابيض | J76: 27/10/1443 | K76: 2022-12-25 | L76: 44275 | M76: 2022-02-06 | N76: 13/05/1444 | O76: =VLOOKUP(G76,Sheet2!A:C,2,0) -> 8515
B77: ب ح ق 8560 | C77: نقل خاص | D77: مرسيدس | E77: رأس تريلا | F77: 2007 | G77: 578368510 | H77: WDB9340321L188141 | I77: ابيض | J77: 27/10/1443 | K77: 2022-12-25 | L77: 44275 | M77: 2022-02-06 | N77: 20/04/1444 | O77: =VLOOKUP(G77,Sheet2!A:C,2,0) -> 8560
B78: ب ر ا 8131 | C78: نقل خاص | D78: مرسيدس | E78: رأس تريلا | F78: 2010 | G78: 778932710 | H78: WDB9340321L472073 | I78: ازرق احمر | J78: 27/10/1443 | K78: 2022-06-03 | L78: 44073 | M78: 2022-02-06 | N78: 28/10/1443 | O78: =VLOOKUP(G78,Sheet2!A:C,2,0) -> 8131
B79: ب ر ا 8483 | C79: نقل خاص | D79: مرسيدس | E79: رأس تريلا | F79: 2010 | G79: 858932710 | H79: WDB9340321L458980 | I79: ازرق | J79: 27/10/1443 | K79: 2022-06-03 | L79: 44073 | M79: 2022-02-06 | N79: 26/10/1443 | O79: =VLOOKUP(G79,Sheet2!A:C,2,0) -> 8483
B80: ب ر ا 9977 | C80: نقل خاص | D80: مرسيدس | E80: رأس تريلا | F80: 2011 | G80: 988932710 | H80: WDB9340321L528268 | I80: ازرق احمر | J80: 27/10/1443 | K80: 2022-06-03 | L80: 44073 | M80: 2022-02-06 | N80: 13/10/1443 | O80: =VLOOKUP(G80,Sheet2!A:C,2,0) -> 9977
B81: ب ر د 1414 | C81: نقل خاص | D81: مرسيدس | E81: رأس تريلا | F81: 2009 | G81: 428743710 | H81: WDB9340321L408056 | I81: ازرق احمر | J81: 02/01/1444 | K81: 2022-08-09 | L81: 44139 | M81: 2022-02-06 | N81: 24/12/1443 | O81: =VLOOKUP(G81,Sheet2!A:C,2,0) -> 1414
B82: ب ر د 1415 | C82: نقل خاص | D82: مرسيدس | E82: رأس تريلا | F82: 2011 | G82: 138743710 | H82: WDB9340321L555694 | I82: ابيض | J82: 02/01/1444 | K82: 2022-08-09 | L82: 44139 | M82: 2022-02-06 | N82: 02/01/1444 | O82: =VLOOKUP(G82,Sheet2!A:C,2,0) -> 1415
B83: ب ر د 1416 | C83: نقل خاص | D83: مرسيدس | E83: رأس تريلا | F83: 2009 | G83: 358743710 | H83: WDB9340321L406038 | I83: ازرق احمر | J83: 02/01/1444 | K83: 2022-08-09 | L83: 44139 | M83: 2022-02-06 | N83: 25/12/1443 | O83: =VLOOKUP(G83,Sheet2!A:C,2,0) -> 1416
B84: ب ر م 6102 | C84: نقل عام | D84: مرسيدس | E84: رأس تريلا | F84: 2010 | G84: 288565710 | H84: WDB9340321L493453 | I84: ابيض | J84: 24/05/1444 | K84: 2022-11-22 | L84: 44242 | M84: 2022-02-06 | N84: 23/04/1444 | O84: =VLOOKUP(G84,Sheet2!A:C,2,0) -> 6102
B85: ا ق ي 8834 | C85: نقل خاص | D85: مرسيدس | E85: مضخه خرسانه | F85: 2008 | G85: 979007010 | H85: WDB932325IL214684 | I85: ابيض | J85: 03/08/1443 | K85: 2023-01-12 | L85: 44292 | M85: 2022-02-06 | N85: 12/05/1444 | O85: =VLOOKUP(G85,Sheet2!A:C,2,0) -> 8834
B86: ا ق ي 8835 | C86: نقل خاص | D86: مرسيدس | E86: مضخه خرسانه | F86: 2011 | G86: 256307010 | H86: WDB9333175L524050 | I86: ابيض | J86: 03/08/1443 | K86: 2023-01-13 | L86: 44293 | M86: 2022-02-06 | N86: 11/03/1444 | O86: =VLOOKUP(G86,Sheet2!A:C,2,0) -> 8835
B87: أ ع ي 3019 | C87: نقل خاص | D87: مرسيدس | E87: مضخه خرسانه | F87: 2008 | G87: 531150010 | H87: NMB94216312071848 | I87: ابيض | J87: 27/10/1443 | K87: 2022-02-17 | L87: 43967 | M87: 2022-02-06 | N87: 19/05/1444 | O87: =VLOOKUP(G87,Sheet2!A:C,2,0) -> 3019
B88: أ ع ي 3021 | C88: نقل خاص | D88: مرسيدس | E88: مضخه خرسانه | F88: 2008 | G88: 286050010 | H88: NMB94216212072320 | I88: ابيض | J88: 27/10/1443 | K88: 2022-02-17 | L88: 43967 | M88: 2022-02-06 | N88: 23/05/1444 | O88: =VLOOKUP(G88,Sheet2!A:C,2,0) -> 3021
B89: أ م ك 4216 | C89: نقل خاص | D89: مرسيدس | E89: مضخه خرسانه | F89: 2012 | G89: 9918110 | H89: WDB9333175L651104 | I89: ابيض | J89: 13/06/1444 | K89: 2024-05-18 | L89: 44778 | M89: 2022-02-06 | N89: 19/05/1444 | O89: =VLOOKUP(G89,Sheet2!A:C,2,0) -> 4216
B90: ب ا ب 3282 | C90: نقل خاص | D90: مرسيدس | E90: مضخه خرسانه | F90: 2015 | G90: 116023410 | H90: WDB9301421l867358 | I90: ابيض | J90: 12/07/1444 | K90: 2024-02-04 | L90: 44674 | M90: 2022-02-06 | N90: 28/12/1443 | O90: =VLOOKUP(G90,Sheet2!A:C,2,0) -> 3282
B91: ا ر ط 5822 | C91: نقل عام | D91: مرسيدس | E91: مضخه خرسانه | F91: 2019 | G91: 225776710 | H91: WDANHBAA7K0287036 | I91: ابيض | J91: 01/02/1444 | K91: 2023-01-18 | L91: 44298 | M91: 2022-02-27 | N91: 08/02/1444 | O91: =VLOOKUP(G91,Sheet2!A:C,2,0) -> 7858
A92: 8053 | B92: ا ر ن | C92: نقل عام | D92: مرسيدس | E92: مضخة خرسانية | F92: 2021 | G92: 667725810 | H92: W1FNXXAJ1M0509882 | I92: ابيض | J92: 13/06/1444 | K92: 2024-06-09 | L92: 44799 | M92: 2022-02-06 | O92: =VLOOKUP(G92,Sheet2!A:C,2,0) -> 
A93: 4285 | B93: ب س ق | C93: نقل خاص | D93: مرسيدس | E93: مضخة خرسانية | F93: 2021 | G93: 506896810 | H93: W1FNXXAJ3M0509883 | I93: ابيض | K93: 2024-09-08 | L93: 44888 | M93: 2022-02-06 | O93: =VLOOKUP(G93,Sheet2!A:C,2,0) -> 
A94: 4286 | B94: ب س ق | C94: نقل خاص | D94: مرسيدس | E94: مضخة خرسانية | F94: 2021 | G94: 384896810 | H94: W1FNXXAJ7M0509532 | I94: ابيض | K94: 2024-09-08 | L94: 44888 | M94: 2022-02-06 | O94: =VLOOKUP(G94,Sheet2!A:C,2,0) -> 
B95: ا ر ص 9837 | C95: نقل عام | D95: مرسيدس | E95: ونش بلك | F95: 2008 | G95: 408994710 | H95: WDB9321431L323824 | I95: احمر | J95: 01/02/1444 | K95: 2022-10-23 | L95: 44213 | M95: 2022-02-06 | N95: 11/03/1444 | O95: =VLOOKUP(G95,Sheet2!A:C,2,0) -> 9837
B96: ا س د 7942 | C96: نقل خاص | D96: مرسيدس | E96: ونش بلك | F96: 1993 | G96: 69269400 | H96: WDB6580431K010967 | I96: بيج | J96: 27/10/1443 | K96: 2023-12-31 | L96: 44641 | M96: 2022-02-06 | N96: 08/03/1444 | O96: =VLOOKUP(G96,Sheet2!A:C,2,0) -> 7942
B97: ا س ي 3699 | C97: شاحنة سكس | D97: مرسيدس | E97: ونش بلك | F97: 1994 | G97: 324863600 | H97: WDB65803315738015 | I97: ابيض | J97: 12/11/1442 | K97: 2024-05-20 | L97: 44780 | M97: 2022-02-06 | N97: 17/05/1444 | O97: =VLOOKUP(G97,Sheet2!A:C,2,0) -> 3699
B98: ا ط ب 7157 | C98: شاحنة سكس | D98: مرسيدس | E98: ونش بلك سطحه | F98: 1990 | G98: 293496900 | H98: WDB65903815517984 | I98: ابيض | J98: 03/01/1443 | K98: 2021-08-18 | L98: =DAYS360($O$1,K98) -> 43788 | M98: 2022-02-06 | N98: 19/12/1442 | O98: =VLOOKUP(G98,Sheet2!A:C,2,0) -> 7157
B99: ا ل ل 7743 | C99: نقل خاص | D99: مرسيدس | E99: ونش بلك | F99: 2011 | G99: 1471110 | H99: WDB9301631L584728 | I99: ابيض | J99: 01/02/1444 | K99: 2023-08-22 | L99: =DAYS360($O$1,K99) -> 44512 | M99: 2022-02-06 | N99: 03/11/1443 | O99: =VLOOKUP(G99,Sheet2!A:C,2,0) -> 7743
B100: ا ر ع 1887 | C100: نقل عام | D100: مرسيدس | E100: ونش بلك | F100: 2013 | G100: 649122810 | H100: WDB9301431L556393 | I100: ابيض | J100: 01/02/1444 | K100: 2024-01-04 | L100: =DAYS360($O$1,K100) -> 44644 | M100: 2022-02-06 | N100: 11/03/1444 | O100: =VLOOKUP(G100,Sheet2!A:C,2,0) -> 1887
B101: ا ر ع 1896 | C101: نقل عام | D101: مرسيدس | E101: ونش بلك | F101: 2011 | G101: 131402810 | H101: WDB9301431L556393 | I101: برتقالي | J101: 01/02/1444 | K101: 2023-12-26 | L101: =DAYS360($O$1,K101) -> 44636 | M101: 2022-02-06 | N101: 12/03/1444 | O101: =VLOOKUP(G101,Sheet2!A:C,2,0) -> 1896

Sheet Sheet2
A1: Sequence # | B1: Numeric Plate# | C1: Arabic Plate#
A3: 936813510 | B3: 3739 | C3: ب ب ط
A4: 324190310 | B4: 7969 | C4: ا هـ س
A5: 884910310 | B5: 8362 | C5: أ ب و
A6: 257069210 | B6: 7607 | C6: أ هـ س
A7: 254584210 | B7: 8396 | C7: أ ب و
A8: 770438210 | B8: 4843 | C8: أ هـ د
A9: 55022210 | B9: 2135 | C9: أ م ق
A10: 630146400 | B10: 1955 | C10: أ أ هـ
A11: 255330600 | B11: 1977 | C11: أ أ هـ
A12: 617376200 | B12: 1971 | C12: أ أ هـ
A13: 135591900 | B13: 2136 | C13: أ د س
A14: 94357500 | B14: 1954 | C14: أ أ هـ
A15: 751410210 | B15: 2386 | C15: أ م ب
A16: 835888400 | B16: 5598 | C16: أ أ هـ
A17: 795726700 | B17: 3506 | C17: أ س ى
A18: 946050400 | B18: 7366 | C18: أ ل طـ
A19: 521301500 | B19: 5206 | C19: أ ب ح
A20: 123732200 | B20: 8339 | C20: أ أ هـ
A21: 42081500 | B21: 4906 | C21: أ د د
A22: 102939700 | B22: 9725 | C22: أ ب ق
A23: 985671410 | B23: 9569 | C23: أ ى ن
A24: 147990710 | B24: 9561 | C24: ب ر ا
A25: 313702600 | B25: 3509 | C25: ا س ي
A26: 487755200 | B26: 1956 | C26: ا ا هـ
A27: 452639200 | B27: 8307 | C27: ا ا هـ
A28: 395075100 | B28: 6932 | C28: ا ا ن
A29: 386138800 | B29: 6642 | C29: ا د ك
A30: 232307010 | B30: 8856 | C30: ا ق ى
A31: 724942210 | B31: 7906 | C31: ا ن د
A32: 621565800 | B32: 3692 | C32: ا ا ك
A33: 657990710 | B33: 9563 | C33: ب ر أ
A34: 947990710 | B34: 9562 | C34: ب ر أ
A35: 658186010 | B35: 8525 | C35: ا ق ى
A36: 384942210 | B36: 7911 | C36: أ ن د
A37: 223539400 | B37: 5572 | C37: ا ا هـ
A38: 252238800 | B38: 6877 | C38: ا د ك
A39: 32539400 | B39: 5571 | C39: ا ا هـ
A40: 531806100 | B40: 5540 | C40: ا ا هـ
A41: 854295100 | B41: 1943 | C41: ا ا هـ
A42: 201158200 | B42: 7530 | C42: ا ل ن
A43: 959757110 | B43: 2954 | C43: ا ل و
A44: 749129110 | B44: 3033 | C44: ا م ك
A45: 531778310 | B45: 9451 | C45: ا و ن
A46: 40879310 | B46: 7371 | C46: ا و ن
A47: 59153310 | B47: 4462 | C47: ا هـ هـ
A48: 261421900 | B48: 4840 | C48: ا د ق
A49: 191219710 | B49: 1755 | C49: د م ر
A50: 480069210 | B50: 2486 | C50: ح د ك
A51: 283726710 | B51: 8831 | C51: د ق د
A52: 404726710 | B52: 8812 | C52: د ق د
A53: 293726710 | B53: 8813 | C53: د ق د
A54: 411926710 | B54: 8834 | C54: د ق د
A55: 373726710 | B55: 8832 | C55: د ق د
A56: 214726710 | B56: 8814 | C56: د ق د
A57: 272604400 | B57: 1139 | C57: ا ع ل
A58: 492512710 | B58: 8891 | C58: ب ر ا
A59: 728940110 | B59: 2562 | C59: ا ك م
A60: 200796210 | B60: 7964 | C60: ا ن و
A61: 235045410 | B61: 9528 | C61: ا و ع
A62: 9413410 | B62: 7483 | C62: ا و ح
A63: 720879310 | B63: 7399 | C63: ا و ن
A64: 153506710 | B64: 4121 | C64: ب ر د
A65: 208561110 | B65: 1293 | C65: ا ك ك
A66: 667412710 | B66: 8913 | C66: ب ر ا
A67: 47412710 | B67: 8923 | C67: ب ر ا
A68: 817412710 | B68: 8926 | C68: ب ر ا
A69: 307412710 | B69: 8928 | C69: ب ر ا
A70: 337412710 | B70: 8925 | C70: ب ر ا
A71: 398898700 | B71: 9445 | C71: ا ك س
A72: 621556600 | B72: 3680 | C72: ا س ى
A73: 447412710 | B73: 8922 | C73: ب ر ا
A74: 77412710 | B74: 8909 | C74: ب ر ا
A75: 396412710 | B75: 8929 | C75: ب ر ا
A76: 17412710 | B76: 8927 | C76: ب ر ا
A77: 787412710 | B77: 8969 | C77: ب ر ا
A78: 918887500 | B78: 8756 | C78: ا ح ا
A79: 62639200 | B79: 8306 | C79: ا ا ه
A80: 665806600 | B80: 3692 | C80: ا س ى
A81: 907347200 | B81: 5537 | C81: ا ا ه
A82: 538990200 | B82: 1998 | C82: ا ا ه
A83: 286367110 | B83: 2766 | C83: ا ل و
A84: 594145500 | B84: 5684 | C84: ا ا ا
A85: 712565800 | B85: 3690 | C85: ا ا ك
A86: 406252210 | B86: 7919 | C86: ا ن د
A87: 235205200 | B87: 8314 | C87: ا ب و
A88: 512238800 | B88: 6875 | C88: ا د ك
A89: 702442200 | B89: 1940 | C89: ا ا ه
A90: 170378600 | B90: 5933 | C90: ا ا ا
A91: 407510500 | B91: 3505 | C91: ا س ى
A92: 258380200 | B92: 8312 | C92: ا ب و
A93: 162639200 | B93: 8309 | C93: ا ا ه
A94: 559298200 | B94: 5588 | C94: ا ا ه
A95: 534120500 | B95: 8331 | C95: ا ا ه
A96: 613441600 | B96: 5591 | C96: ا ا ه
A97: 544017010 | B97: 8864 | C97: ا ق ى
A98: 877412710 | B98: 8907 | C98: ب ر ا
A99: 608372500 | B99: 3673 | C99: ا س ى
A100: 263272700 | B100: 7780 | C100: ب ب ى
A101: 946923510 | B101: 7169 | C101: ح و و
A102: 204798610 | B102: 3332 | C102: د ط ص
A103: 152131610 | B103: 8953 | C103: د ح و
A104: 981633210 | B104: 2549 | C104: ح ا ق
A105: 168746210 | B105: 7658 | C105: ح ح ا
A106: 510996010 | B106: 8815 | C106: ا ق ى
A107: 187327800 | B107: 2611 | C107: ا ح هـ
A108: 785391900 | B108: 9821 | C108: ا س ك
A109: 713987400 | B109: 5679 | C109: ا ا ا
A110: 469095400 | B110: 1931 | C110: ا ا هـ
A111: 577155100 | B111: 8312 | C111: ا ا هـ
A112: 919034210 | B112: 3911 | C112: ا ن ط
A113: 727400610 | B113: 7079 | C113: ب ح ع
A114: 129356610 | B114: 8389 | C114: ب ب ي
A115: 978492410 | B115: 8184 | C115: ب ا ا
A116: 882512710 | B116: 8906 | C116: ب ر ا
A117: 473410 | B117: 5689 | C117: ا ي و
A118: 701822410 | B118: 4400 | C118: ا ا ح
A119: 480400500 | B119: 3533 | C119: ا س ي
A120: 960940900 | B120: 2224 | C120: ا ر س
A121: 551421900 | B121: 4841 | C121: أ د ق
A122: 983966710 | B122: 3611 | C122: ب ر هـ
A123: 688642210 | B123: 7969 | C123: ا م ق
A124: 661942210 | B124: 7929 | C124: ا ن د
A125: 96293210 | B125: 8386 | C125: ا ب و
A126: 917293210 | B126: 8389 | C126: ا ب و
A127: 876293210 | B127: 8390 | C127: ا ب و
A128: 885293210 | B128: 8392 | C128: ا ب و
A129: 324863600 | B129: 3699 | C129: ا س ي
A130: 293496900 | B130: 7157 | C130: ا ط ب
A131: 679153310 | B131: 4463 | C131: ا هـ هـ
A132: 116023410 | B132: 3282 | C132: ب ا ب
A133: 648925900 | B133: 8560 | C133: ا ص س
A134: 461835900 | B134: 8994 | C134: ا ص س
A135: 9918110 | B135: 4216 | C135: ا م ك
A136: 839925900 | B136: 8566 | C136: ا ص س
A137: 658925900 | B137: 8561 | C137: ا ص س
A138: 988925900 | B138: 8559 | C138: ا ص س
A139: 668925900 | B139: 8562 | C139: ا ص س
A140: 249925900 | B140: 8576 | C140: ا ص س
A141: 9925900 | B141: 8564 | C141: ا ص س
A142: 338737010 | B142: 1667 | C142: ا ك ط
A143: 400914010 | B143: 3912 | C143: ا ق د
A144: 496737010 | B144: 1656 | C144: ا ك ط
A145: 914010 | B145: 3913 | C145: ا ق د
A146: 134914010 | B146: 3902 | C146: ا ق د
A147: 733224010 | B147: 3911 | C147: ا ق د
A148: 567737010 | B148: 1662 | C148: ا ك ط
A149: 286050010 | B149: 3021 | C149: ا ع ي
A150: 57737010 | B150: 1664 | C150: ا ك ط
A151: 384737010 | B151: 1648 | C151: ا ك ط
A152: 578368510 | B152: 8560 | C152: ب ح ق
A153: 224328510 | B153: 7254 | C153: ب ح ص
A154: 234328510 | B154: 7257 | C154: ب ح ص
A155: 4328510 | B155: 7253 | C155: ب ح ص
A156: 524328510 | B156: 7256 | C156: ب ح ص
A157: 83328510 | B157: 7258 | C157: ب ح ص
A158: 812468510 | B158: 8470 | C158: ب ح ق
A159: 268368510 | B159: 8515 | C159: ب ح ق
A160: 338186410 | B160: 3495 | C160: ح ق ق
A161: 929186410 | B161: 3497 | C161: ح ق ق
A162: 531150010 | B162: 3019 | C162: ا ع ي
A163: 996293210 | B163: 8387 | C163: ا ب و
A164: 946293210 | B164: 8391 | C164: ا ب و
A165: 69269400 | B165: 7942 | C165: ا س د
A166: 1471110 | B166: 7743 | C166: ا ل ل
A167: 60142410 | B167: 3880 | C167: ح ك ح
A168: 979874410 | B168: 6554 | C168: ب ا د
A169: 762069610 | B169: 7599 | C169: ا ر د
A170: 979007010 | B170: 8834 | C170: ا ق ي
A171: 256307010 | B171: 8835 | C171: ا ق ي
A172: 869133710 | B172: 7056 | C172: ب ر ك
A173: 889133710 | B173: 7057 | C173: ب ر ك
A174: 299419710 | B174: 1259 | C174: ا ك ل
A175: 897365710 | B175: 7037 | C175: ب ر د
A176: 130952710 | B176: 3954 | C176: د ر ع
A177: 494370810 | B177: 9667 | C177: د ن ك
A178: 215087710 | B178: 8949 | C178: ب د ي
A179: 315087710 | B179: 8950 | C179: ب د ي
A180: 615087710 | B180: 8951 | C180: ب د ي
A181: 815087710 | B181: 8952 | C181: ب د ي
A182: 925087710 | B182: 8953 | C182: ب د ي
A183: 735087710 | B183: 8954 | C183: ب د ي
A184: 936087710 | B184: 8955 | C184: ب د ي
A185: 328994710 | B185: 9835 | C185: ا ر ص
A186: 418994710 | B186: 9836 | C186: ا ر ص
A187: 564365710 | B187: 9843 | C187: ا ر ص
A188: 944365710 | B188: 9842 | C188: ا ر ص
A189: 778932710 | B189: 8131 | C189: ب ر ا
A190: 858932710 | B190: 8483 | C190: ب ر ا
A191: 988932710 | B191: 9977 | C191: ب ر ا
A192: 428743710 | B192: 1414 | C192: ب ر د
A193: 138743710 | B193: 1415 | C193: ب ر د
A194: 358743710 | B194: 1416 | C194: ب ر د
A195: 288565710 | B195: 6102 | C195: ب ر م
A196: 460756710 | B196: 8827 | C196: د ك هـ
A197: 176570810 | B197: 5181 | C197: د ن ع
A198: 225776710 | B198: 7858 | C198: ب د ي
A199: 408994710 | B199: 9837 | C199: ا ر ص
A200: 667491810 | B200: 2306 | C200: ب س ر
A201: 648202810 | B201: 6441 | C201: ا ر ط
... 2 more rows

Sheet GBHdr
A1: ALLIANZ SAUDI FRANSI COOPERATIVE INSURANCE COMPANY | B1: asf2123 | C1: 2017-09-25 | D1: t09:43
A2: Scheme ID | B2: MFP-794925 | C2: no
A3: Scheme PIN | B3: 4597260 | C3: 1108402
A4: Scheme Name | B4: Khaled Saleh Alhussen
A5: Policy No | B5: MFP/794925
A6: Inception | B6: 2017-06-14
A7: Expiry | B7: 2018-06-14
A8: Reserved
A9: Reserved
A10: BrandName | B10: Nationality | C10: VehType | D10: VehColor | E10: PlateType | F10: KSACity | G10: YearMade | H10: ODRepair | I10: UserType | J10: MailAdd | K10: Seats
G11: 1900 | H11: Normal | I11: Individual | J11: Wasel | K11: 0
A12: Abarth_1000 (48-2254) | B12: Saudi | 244-682 | C12: Sedan | D12: Beige | E12: Public Transport | F12: A1-Riyadh City | G12: 2018 | H12: Dealer | I12: Corporate | J12: Postal | K12: 100
A13: Abarth_1000 Bialbero (48-3147) | B13: Indian | 245-356 | C13: Jeep | D13: Black | E13: Export | F13: B1-Holy City of Makkah
A14: Abarth_1000 GT (48-2918) | B14: Andorra | 246-020 | C14: Van | D14: Blue | E14: Motorcycle | F14: B2-Jeddah
A15: Abarth_1000 TC Corsa (48-3023) | B15: Emirate | 247-784 | C15: Mini Bus | D15: Brown | E15: Temp | F15: C1-Holy City of Madinah
A16: Abarth_103 GT (48-2810) | B16: Afghani | 248-004 | C16: Bus | D16: CREAM | E16: Private Bus | F16: D1-Buraidah City
A17: Abarth_124 (48-1272) | B17: Antigua and Barbuda | 249-028 | C17: Pickup | D17: Dark Green | E17: Private Car | F17: E1-Dammam City
A18: Abarth_1300 (48-2317) | B18: Anguilla | 250-660 | C18: Medium Truck | D18: Dark Purple | E18: Rented | F18: E2-Jubail
A19: Abarth_1500 (48-2393) | B19: Albania | 251-008 | C19: Truck | D19: Dark Silver | E19: Diplomatic | F19: E3-Al-Khobar
A20: Abarth_1600 (48-2861) | B20: Armenia | 252-051 | C20: Trailer | D20: Gold | E20: Custom | F20: E4-Hafr Al Batin
A21: Abarth_2000 (48-3507) | B21: Netherland Antilles | 253-530 | C21: Sports | D21: Gray | E21: Private Transport | F21: E5-Dhahran
A22: Abarth_205 (48-1505) | B22: Angola | 254-024 | C22: SUV | D22: Green | E22: Public Bus | F22: E6-Al Ahssa
A23: Abarth_207 (48-2631) | B23: Argentina | 256-032 | C23: Equipment | D23: Light Blue | E23: Taxi | F23: E7-Qatif
A24: Abarth_208 (48-3508) | B24: American Samoa | 257-016 | C24: Motorcycle | D24: Light Silver | E24: Equipment | F24: E8-Saihat
A25: Abarth_209 (48-3150) | B25: Austria | 258-040 | D25: Orange | F25: E9-Hofuf City
A26: Abarth_210 (48-2396) | B26: Australian | 259-036 | D26: Others | F26: F1-Abha City
A27: Abarth_2200 (48-144) | B27: Aruba | 260-533 | D27: Pearl | F27: G1-Tabouk City
A28: Abarth_2400 (48-2971) | B28: Azerbaidjan | 261-031 | D28: Pink | F28: H1-Hail City
A29: Abarth_500 (48-633) | B29: Bosnia-Herzegovina | 262-070 | D29: Purple | F29: I1-Arar City
A30: Abarth_595 (48-150) | B30: Barbados | 263-052 | D30: Red | F30: J1-Jizan City
A31: Abarth_600 (48-202) | B31: Banglades | 264-050 | D31: Silver | F31: K1-Najran City
A32: Abarth_700 (48-1395) | B32: Belgium | 265-056 | D32: White | F32: L1-Al-Baha City
A33: Abarth_750 (48-1692) | B33: Burkina Faso | 266-854 | D33: Yellow | F33: M1-Sikaka City
A34: Abarth_800 Scorpione Coupe Allemano (48-465) | B34: Bulgarian | 267-100 | F34: N1-Riyadh
A35: Abarth_850 (48-2873) | B35: Bahraini | 268-048
A36: Abarth_A 112 (48-1573) | B36: Burundi | 269-108
A37: Abarth_Bialbero (48-1288) | B37: Benin | 270-204
A38: Abarth_Coupe (48-3466) | B38: Bermuda | 271-060
A39: Abarth_Grande Punto (48-1970) | B39: Brunei Darussalam | 272-096
A40: Abarth_Lancia 037 (48-2292) | B40: Bolivian | 273-068
A41: Abarth_Mono 1000 (48-3597) | B41: Brazilian | 274-076
A42: Abarth_Monomille (48-2364) | B42: Bahamas | 275-044
A43: Abarth_Monotipo (48-2297) | B43: Buthan | 276-064
A44: Abarth_OT (48-2232) | B44: Bouvet Island | 277-074
A45: Abarth_Others (48-4158) | B45: Botswana | 278-072
A46: Abarth_Renault (48-390) | B46: Belarus | 279-112
A47: Abarth_Simca (48-2795) | B47: Belize | 280-084
A48: Abarth_Spider Riviera (48-674) | B48: Canadian | 281-124
A49: Abarth_Stola (48-1260) | B49: Cocos (Keeling) Isl. | 282-166
A50: ACE_Shovel (868-5469) | B50: Central African Rep. | 284-140
A51: Acura_CL (114-1898) | B51: Congo | 285-178
A52: Acura_CL-X (114-215) | B52: Switzerland | 286-756
A53: Acura_CSX (114-1848) | B53: Ivory Coast | 287-384
A54: Acura_EL (114-2945) | B54: Cook Islands | 288-184
A55: Acura_ILX (114-1247) | B55: Cameroon | 290-120
A56: Acura_ILX Hybrid (114-1204) | B56: Chinese | 291-156
A57: Acura_Integra (114-3184) | B57: Colombian | 292-170
A58: Acura_Legend (114-1251) | B58: Costa Rica | 293-188
A59: Acura_MDX (114-1366) | B59: Cape Verde | 295-132
A60: Acura_NSX (114-2717) | B60: Christmas Island | 296-162
A61: Acura_Others (114-4224) | B61: Cyprus | 297-196
A62: Acura_RDX (114-2791) | B62: Czech Republic | 298-203
A63: Acura_RL (114-1865) | B63: Germany | 299-276
A64: Acura_RLX (114-1601) | B64: Djibouti | 300-262
A65: Acura_RSX (114-3071) | B65: Denmark | 301-208
A66: Acura_SLX (114-1676) | B66: Dominica | 302-212
A67: Acura_TL (114-1067) | B67: Dominican Republic | 303-214
A68: Acura_TLX (114-3391) | B68: Algerian | 304-012
A69: Acura_TSX (114-1497) | B69: Ecuador | 305-218
A70: Acura_TSX Sport Wagon (114-3883) | B70: Estonia | 306-233
A71: Acura_Vigor (114-752) | B71: Egyptian | 307-818
A72: Acura_ZDX (114-253) | B72: Western Sahara | 308-732
A73: Ac_2-Litre (75-2395) | B73: Eritrean | 309-232
A74: Ac_427 (75-2870) | B74: Spain | 310-724
A75: Ac_428 (75-3512) | B75: Ethiopian | 311-231
A76: Ac_Ace (75-1189) | B76: Finland | 312-246
A77: Ac_Aceca (75-1694) | B77: Fiji | 313-242
A78: Ac_Aceca-Bristol (75-2020) | B78: Falkland Isl.(Malvinas) | 314-238
A79: Ac_Cobra (75-2589) | B79: Micronesia | 315-583
A80: Ac_Greyhound (75-483) | B80: Faroe Islands | 316-234
A81: Ac_Others (75-4185) | B81: French | 317-250
A82: Admiral_Others (162-4272) | B82: France (European Ter.) | 318-258
A83: Admiral_PICKUP (162-4480) | B83: Gabon | 319-266
A84: Admiral_pickup four doors (162-3999) | B84: Great Britain (UK) | 320-826
A85: Admiral_pickup tow doors (162-4000) | B85: Grenada | 321-308
A86: Ahok Leyland_Others (163-4273) | B86: Georgia | 322-268
A87: Alfa-Romeo_145 (135-2684) | B87: Ghana | 324-288
A88: Alfa-Romeo_146 (135-3087) | B88: Gibraltar | 325-292
A89: Alfa-Romeo_147 (135-905) | B89: Greenland | 326-304
A90: Alfa-Romeo_155 (135-2816) | B90: Gambia | 327-270
A91: Alfa-Romeo_156 (135-142) | B91: Guinea | 328-324
A92: Alfa-Romeo_159 (135-2970) | B92: Guadeloupe (Fr.) | 329-312
A93: Alfa-Romeo_164 (135-1943) | B93: Equatorial Guinea | 330-226
A94: Alfa-Romeo_166 (135-862) | B94: Greece | 331-300
A95: Alfa-Romeo_175 (135-3567) | B95: Guatemala | 332-320
A96: Alfa-Romeo_1750 (135-2080) | B96: Guam (US) | 333-316
A97: Alfa-Romeo_179 (135-195) | B97: Guinea Bissau | 334-624
A98: Alfa-Romeo_1900 (135-1228) | B98: Guyana | 335-328
A99: Alfa-Romeo_2000 (135-1077) | B99: Hong Kong | 337-344
A100: Alfa-Romeo_2600 (135-1758) | B100: Heard & McDonald Isl. | 338-334
A101: Alfa-Romeo_33 (135-1230) | B101: Honduras | 339-340
A102: Alfa-Romeo_33 Race (135-2083) | B102: Croatia | 340-191
A103: Alfa-Romeo_33 Stradale (135-318) | B103: Haiti | 341-332
A104: Alfa-Romeo_33 Tt (135-2262) | B104: Hungary | 342-348
A105: Alfa-Romeo_4C (135-3453) | B105: Indonesian | 343-360
A106: Alfa-Romeo_6C (135-1394) | B106: Ireland | 344-372
A107: Alfa-Romeo_75 (135-520) | B107: British Indian O. Terr. | 346-086
A108: Alfa-Romeo_8C Competizione (135-1188) | B108: Iraqi | 347-368
A109: Alfa-Romeo_90 (135-1836) | B109: Iranian | 348-364
A110: Alfa-Romeo_Alfa 6 (135-3457) | B110: Iceland | 349-352
A111: Alfa-Romeo_Alfasud (135-467) | B111: Italy | 350-380
A112: Alfa-Romeo_Alfetta (135-1517) | B112: Jamaica | 351-388
A113: Alfa-Romeo_AR 51 (135-3459) | B113: Jordanian | 352-400
A114: Alfa-Romeo_Arna (135-2581) | B114: Japanese | 353-392
A115: Alfa-Romeo_Bella (135-155) | B115: Kenyan | 354-404
A116: Alfa-Romeo_Berlina (135-3287) | B116: kyrgyzstan | 355-417
A117: Alfa-Romeo_Brera (135-1843) | B117: Cambodia | 356-116
A118: Alfa-Romeo_Caimano (135-1463) | B118: Kiribati | 357-296
A119: Alfa-Romeo_Carabo (135-706) | B119: Comoros | 358-174
A120: Alfa-Romeo_Centauri (135-644) | B120: St.Kitts Nevis Anguilla | 359-659
A121: Alfa-Romeo_Coupe (135-1784) | B121: Korean (North) | 360-408
A122: Alfa-Romeo_Crosswagon (135-3110) | B122: Korean (South) | 361-410
A123: Alfa-Romeo_Cuneo (135-531) | B123: Kuwaiti | 362-414
A124: Alfa-Romeo_Dardo (135-1787) | B124: Cayman Islands | 363-136
A125: Alfa-Romeo_Disco Volante (135-3244) | B125: Kazachstan | 364-398
A126: Alfa-Romeo_Eagle (135-3419) | B126: Laos | 365-418
A127: Alfa-Romeo_Giulia (135-61) | B127: Lebanese | 366-422
A128: Alfa-Romeo_Giulietta (135-1969) | B128: Saint Lucia | 367-662
A129: Alfa-Romeo_GP 158 (135-1652) | B129: Liechtenstein | 368-438
A130: Alfa-Romeo_GP 159 (135-1475) | B130: Sri Lanka | 369-144
A131: Alfa-Romeo_Graduate (135-19) | B131: Liberia | 371-430
A132: Alfa-Romeo_GT (135-1476) | B132: Lesotho | 372-426
A133: Alfa-Romeo_GTA (135-2346) | B133: Lithuania | 373-440
A134: Alfa-Romeo_GTV (135-1719) | B134: Luxembourg | 374-442
A135: Alfa-Romeo_GTV6 (135-2290) | B135: Latvia | 375-428
A136: Alfa-Romeo_Junior (135-3254) | B136: Libya | 376-434
A137: Alfa-Romeo_Kamal (135-3591) | B137: Moroccan | 377-504
A138: Alfa-Romeo_MiTo (135-2487) | B138: Monaco | 378-492
A139: Alfa-Romeo_Navajo (135-3193) | B139: Moldavia | 379-498
A140: Alfa-Romeo_Nuvola (135-556) | B140: Madagascar | 380-450
A141: Alfa-Romeo_Others (135-4245) | B141: Marshall Islands | 381-584
A142: Alfa-Romeo_Proteo (135-1862) | B142: Mali | 382-466
A143: Alfa-Romeo_RZ (135-1923) | B143: Burma | 383-104
A144: Alfa-Romeo_Scarabeo (135-1547) | B144: Mongolia | 384-496
A145: Alfa-Romeo_Scighera (135-612) | B145: Macau | 385-446
A146: Alfa-Romeo_Spider (135-1430) | B146: Northern Mariana Isl. | 386-580
A147: Alfa-Romeo_Sportiva (135-1378) | B147: Martinique (Fr.) | 387-474
A148: Alfa-Romeo_Sportut (135-2964) | B148: Mauritania | 388-478
A149: Alfa-Romeo_Sportwagon (135-3074) | B149: Montserrat | 389-500
A150: Alfa-Romeo_Sprint (135-1551) | B150: Malta | 390-470
A151: Alfa-Romeo_SZ (135-3268) | B151: Mauritius | 391-480
A152: Allard_GT (64-1107) | B152: Maldives | 392-462
A153: Allard_J (64-3122) | B153: Malawi | 393-454
A154: Allard_J1 (64-2710) | B154: Mexico | 394-484
A155: Allard_J2 (64-2479) | B155: Malaysia | 395-458
A156: Allard_J2R (64-3430) | B156: Mozambique | 396-508
A157: Allard_J2X (64-3366) | B157: Namibia | 397-516
A158: Allard_K1 (64-3304) | B158: New Caledonia (Fr.) | 398-540
A159: Allard_K2 (64-1250) | B159: Niger | 399-562
A160: Allard_K3 (64-3185) | B160: Norfolk Island | 400-574
A161: Allard_M1 (64-3660) | B161: Nigerian | 401-566
A162: Allard_Others (64-4174) | B162: Nicaragua | 402-558
A163: Allard_P1 (64-1415) | B163: Netherlands | 403-528
A164: Allard_Palm Beach (64-3599) | B164: Norway | 404-578
A165: Allard_Safari (64-895) | B165: Nepali | 405-524
A166: Alpina_2002 (136-1945) | B166: Nauru | 406-520
A167: Alpina_3 (136-864) | B167: Niue | 408-570
A168: Alpina_B (136-2527) | B168: New Zealand | 409-554
A169: Alpina_B 10 (136-326) | B169: Omani | 410-512
A170: Alpina_B 12 (136-1037) | B170: Panama | 411-591
A171: Alpina_B3 (136-1339) | B171: Peru | 412-604
A172: Alpina_B5 (136-1286) | B172: Papua New | 414-598
A173: Alpina_B6 (136-702) | B173: Philippines | 415-608
A174: Alpina_B7 (136-2092) | B174: Pakistani | 416-586
A175: Alpina_D3 (136-3112) | B175: Poland | 417-616
A176: Alpina_Others (136-4246) | B176: St. Pierre & Miquelon | 418-666
A177: Alpina_Roadster (136-1988) | B177: Pitcairn | 419-612
A178: Alpine_A (86-2757) | B178: Puerto Rico (US) | 420-630
A179: Alpine_A 106 (86-2932) | B179: Palestinian | 421-900
A180: Alpine_A 108 (86-466) | B180: Portugal | 422-620
A181: Alpine_A 110 (86-3338) | B181: Palau | 423-585
A182: Alpine_A 310 (86-2330) | B182: Paraguay | 424-600
A183: Alpine_A 442 (86-917) | B183: Qatari | 425-634
A184: Alpine_A 610 (86-2018) | B184: Reunion (Frsss.) | 426-638
A185: Alpine_Others (86-4196) | B185: Romania | 427-642
A186: Alpine_V6 (86-1883) | B186: Russian Federation | 428-643
A187: Alvis_Others (110-4220) | B187: Rwanda | 429-646
A188: Alvis_TA 14 (110-1553) | B188: Solomon Islands | 430-090
A189: Alvis_TA 21 (110-3612) | B189: Seychelles | 431-690
A190: Alvis_TB 14 (110-3487) | B190: Sudanese | 432-736
A191: Alvis_TB 21 (110-1496) | B191: Sweden | 433-752
A192: Alvis_TC (110-1677) | B192: Singapore | 434-702
A193: Alvis_TC 108 G (110-3614) | B193: St. Helena | 435-654
A194: Alvis_TC 21 (110-244) | B194: Slovenia | 436-705
A195: Alvis_TD (110-1381) | B195: Svalbard & Jan Mayen Is | 437-744
A196: Alvis_TF (110-1262) | B196: Slovak Republic | 438-703
A197: AM General_Hummer (161-3952) | B197: Sierra Leone | 439-694
A198: AM General_Others (161-4271) | B198: San Marino | 440-674
A199: Amc_Ambassador (46-769) | B199: Senegal | 441-686
A200: Amc_AMX (46-2981) | B200: Somalia | 442-706
... 4770 more rows

Sheet Setup (hidden)
B1: Allianz Saudi Fransi Cooperative Insurance Company
B3: Project Name | D3: Group Scheme Renewals List
B4: #Import files | D4: 2 | E4: Used in | F4: insur\group\GrpMList.w
B5: Nbr | C5: Import File Name | D5: #Records | E5: Destination Sheet Name | F5: Starting Dest. Cell | G5: Starting Row | H5: Ending Row | I5: Up to Column | J5: Ending Column | L5: Import Mode
A6: RUN | B6: 1 | C6: C:\IMS\GRenHdr.TXT | D6: 4970 | E6: GBHdr | F6: A1 | G6: =IF(F6="",0,INT(MID(F6,2,4))) -> 1 | H6: =IF(D6="",0,D6+G6-1) -> 4970 | I6: AW | J6: S8
B7: 2 | C7: C:\IMS\GRenList.TXT | D7: 50 | E7: LoadCars | F7: A8 | G7: =IF(F7="",0,INT(MID(F7,2,4))) -> 8 | H7: =IF(D7="",0,D7+G7-1) -> 57 | I7: S | J7: S57
G8: =IF(F8="",0,INT(MID(F8,2,4))) -> 0 | H8: 0 | J8: =IF(I8="","",I8 & H8) -> 
G9: =IF(F9="",0,INT(MID(F9,2,4))) -> 0 | H9: 0 | J9: =IF(I9="","",I9 & H9) -> 
G10: 0 | H10: 0
G11: 0 | H11: 0
G12: 0
G13: 0
G14: 0 | H14: 0
G15: 0 | H15: 0
G16: 0 | H16: 0
G17: 0 | H17: 0
G18: 0 | H18: 0
G19: 0 | H19: 0
G20: 0 | H20: 0
G21: 0 | H21: 0
G22: 0 | H22: 0
G23: 0 | H23: 0
G24: 0 | H24: 0
G25: 0 | H25: 0
